{"text_format":"1","workbook":"xlsx","n_sheets":4,"sheets":["PLANILLA#1 (1-16)","PLANILLA#2 (17-32)","PLANILLA#4 (49-64)","BDATOS"],"not_rendered":{"charts":0,"images":8,"macros":1,"external_links":0,"defined_names":9,"comments":1,"pivot_tables":0},"unopened":[],"bounds":{"document_bytes":16777216,"sheet_cells":100000,"rows_first":2000,"rows_last":500,"rows_between":2000,"halvings":0,"cell_chars":16384,"cell_head_chars":4096},"cells_cut":0,"cells_raw":0,"read":"whole","date_system":"1900"}

{"sheet":"PLANILLA#1 (1-16)","index":0,"n_rows":359,"n_cols":30,"rows_kept":359,"cut":false,"hidden":false,"merged":[[1,18,2,20],[32,13,34,17],[32,2,34,5],[32,8,34,10],[38,13,40,19],[35,13,35,17],[31,19,36,20],[1,1,3,9],[5,8,5,9],[9,17,9,18],[3,10,3,17],[5,10,5,11],[5,19,5,20],[1,10,1,17],[2,10,2,17],[3,18,3,20],[37,9,37,11],[35,2,35,5],[10,8,10,9],[12,2,14,2],[12,11,13,11],[10,1,10,3],[12,1,14,1],[41,13,41,19],[41,7,41,8],[8,19,8,20],[12,12,13,20],[37,2,37,5],[38,9,38,11],[39,9,39,11],[40,9,40,11],[41,9,41,11],[8,8,8,9],[37,7,37,8],[10,10,10,11],[10,4,10,7],[35,8,35,10],[12,7,13,8],[12,10,14,10],[7,19,7,20],[7,10,7,11],[7,4,7,7],[8,17,8,18],[9,10,9,11],[9,19,9,20],[7,14,7,16],[8,14,8,16],[7,17,7,18],[7,8,7,9],[9,12,9,13],[9,14,9,16],[9,4,9,7],[9,8,9,9],[42,9,42,11],[42,2,42,8],[38,7,38,8],[39,7,39,8],[40,7,40,8],[41,2,41,5],[39,2,39,5],[40,2,40,5],[38,2,38,5],[10,12,10,13],[10,14,10,15],[10,16,10,17],[12,4,13,6],[7,1,7,3],[8,1,8,3],[9,1,9,3],[12,3,14,3],[12,9,14,9],[5,1,5,3],[5,14,5,16],[5,17,5,18],[8,10,8,11],[8,12,8,13],[5,4,5,7],[8,4,8,7],[7,12,7,13],[5,12,5,13]]}
[]
[null,null,null,null,null,null,null,null,null,null,"Federación Colombiana de Patinaje ",null,null,null,null,null,null,null,"TEMPORADA 2026 - 2027"]
[null,null,null,null,null,null,null,null,null,null,"PUI - Planilla Única de Inscripción",null,null,null,null,null,null,null,null,null,null,null,null,null,null,null,null,null,null,"D"]
[null,null,null,null,null,null,null,null,null,null,"Categoría Transición",null,null,null,null,null,null,null,null,null,null,null,null,null,null,null,null,null,null,"V"]
[]
[null,"NOMBRE DEL EVENTO",null,null,"II TORNEO NACIONAL INTERCLUBES 2026, EN LA DISCIPLINA DE PATINAJE DE VELOCIDAD CATEGORIA TRANSICIÓN",null,null,null,"CIUDAD SEDE DEL EVENTO",null,"BOGOTÁ D.C",null,"LIGA ",null,"BOGOTÁ",null,null,"FECHA EVENTO",null,"Del 2 al 4 de octubre de 2026"]
[]
[null,"NOMBRE CLUB",null,null,null,null,null,null,"LIGA A LA QUE PERTENECE",null,null,null,"DIRECCIÓN",null,null,null,null,"TELÉFONO CLUB",null,null,null,null,null,null,null,null,{"$f":"PROPER(E8)","v":""},null,null,"TI"]
[null,"NOMBRE COMPLETO DEL PRESIDENTE DEL CLUB",null,null,null,null,null,null,"C.C O NIT PRESIDENTE",null,null,null,"DELEGADO CLUB",null,null,null,null,"CELULAR DELEGADO",null,null,null,null,null,null,null,null,{"$f":"PROPER(K8)","v":""},null,null,"CC"]
[null,"CORREO ELECTRONICO DEL PRESIDENTE O CLUB",null,null,null,null,null,null,"TEL / CEL PRESIDENTE",null,null,null,"TÉCNICO",null,null,null,null,"ASISTENTE",null,null,null,null,null,null,null,null,null,"FECHA HOY","FECHA DE CORTE","PAS"]
[null,"TOTAL DEPORTISTAS INSCRIPCIÓN ORDINARIA",null,null,{"$f":"IF(H41=0,\"\",H41)","v":""},null,null,null,"TOTAL DEPORTISTAS INSCRIPCIÓN \nEXTRAORDINARIA",null,{"$f":"IF(H42=0,\"\",H42)","v":""},null,"VALOR INSCRIPCIÓN ORDINARIA CLUB",null,{"$f":"IF($AC$11<$AB$11,0,IF($AC$11>$AB$11,1,0))","v":1},null,"VALOR INSCRIPCIÓN EXTRAORDINARIA CLUB",null,{"$f":"IF($AC$11>$AB$11,0,IF($AC$11<$AB$11,1,1))","v":0},"VALOR TOTAL A TRANSFERIR",{"$f":"J43","v":350000},null,null,null,null,null,null,{"$f":"TODAY()","v":"2026-08-27"},"2026-09-20"]
[]
[null,"NO.","NOMBRES COMPLETOS                     (COMO APARECEN EN EL DOCUMENTO DE IDENTIDAD)","APELLIDOS COMPLETOS                     (COMO APARECEN EN EL DOCUMENTO DE IDENTIDAD)","FECHA NACIMIENTO",null,null,"DOCUMENTO IDENTIDAD",null,"OBLIGATORIO CÓDIGO ÚNICO VELOPRO","CATEGORÍA","RAMA","PRUEBAS",null,null,null,null,null,null,null,null,null,"EDAD AL"]
[null,null,null,null,null,null,null,null,null,null,null,null,null,null,null,null,null,null,null,null,null,null,null,null,null,null,{"$f":"PROPER(O9)","v":""}]
[null,null,null,null,"DIA","MES","AÑO","TIPO","NÚMERO",null,null,"D / V","Remates 200m + D","Eliminación","Carriles","Puntos","Relevos","X","X","X","X",null,"2026-07-01",null,null,null,{"$f":"PROPER(O10)","v":""}]
[null,1,null,null,null,null,null,null,null,null,{"$f":"IF(W16=\"\",\"\",IF(OR(W16=11),\"PREINFANTIL\",IF(OR(W16=12),\"INFANTIL\",IF(W16=13,\"JUNIOR\",\"ERROR FEC NAC\"))))","v":""},null,null,null,null,null,null,null,null,null,null,null,{"$f":"IF(Z16=\"//\",\"\",DATEDIF(Z16,$W$15,\"y\"))","v":""},null,null,{"$f":"TEXT((CONCATENATE(E16,\"/\",F16,\"/\",G16)),\"dd/mmmm/yyyy\")","v":"//"},null,{"$f":"TRIM(PROPER(C16))","v":""},{"$f":"TRIM(PROPER(D16))","v":""}]
[null,2,null,null,null,null,null,null,null,null,{"$f":"IF(W17=\"\",\"\",IF(OR(W17=11),\"PREINFANTIL\",IF(OR(W17=12),\"INFANTIL\",IF(W17=13,\"JUNIOR\",\"ERROR FEC NAC\"))))","v":""},null,null,null,null,null,null,null,null,null,null,null,{"$f":"IF(Z17=\"//\",\"\",DATEDIF(Z17,$W$15,\"y\"))","v":""},null,null,{"$f":"TEXT((CONCATENATE(E17,\"/\",F17,\"/\",G17)),\"dd/mmmm/yyyy\")","v":"//"},"Antioquia",{"$f":"TRIM(PROPER(C17))","v":""},"","Acacias Elite"]
[null,3,null,null,null,null,null,null,null,null,"",null,null,null,null,null,null,null,null,null,null,null,"",null,null,{"$f":"TEXT((CONCATENATE(E18,\"/\",F18,\"/\",G18)),\"dd/mmmm/yyyy\")","v":"//"},"Arauca","","","Activo Guamal "]
[null,4,null,null,null,null,null,null,null,null,"",null,null,null,null,null,null,null,null,null,null,null,"",null,null,"//","Atlántico","","","Águilas Del Café"]
[null,5,null,null,null,null,null,null,null,null,"",null,null,null,null,null,null,null,null,null,null,null,"",null,null,"//","Bogotá","","","Alc Club"]
[null,6,null,null,null,null,null,null,null,null,"",null,null,null,null,null,null,null,null,null,null,null,"",null,null,"//","Bolívar","","","Alcaravanes"]
[null,7,null,null,null,null,null,null,null,null,"",null,null,null,null,null,null,null,null,null,null,null,"",null,null,"//","Boyacá","","","Alianza"]
[null,8,null,null,null,null,null,null,null,null,"",null,null,null,null,null,null,null,null,null,null,null,"",null,null,"//","Caldas","","","Anfibio 2"]
[null,9,null,null,null,null,null,null,null,null,"",null,null,null,null,null,null,null,null,null,null,null,"",null,null,"//","Caquetá","","","Ap Skate"]
[null,10,null,null,null,null,null,null,null,null,"",null,null,null,null,null,null,null,null,null,null,null,"",null,null,"//","Casanare","","","Arcadia Sport Wear"]
[null,11,null,null,null,null,null,null,null,null,"",null,null,null,null,null,null,null,null,null,null,null,"",null,null,"//","Cauca","","","Arena Geisingen "]
[null,12,null,null,null,null,null,null,null,null,"",null,null,null,null,null,null,null,null,null,null,null,"",null,null,"//","Cesar","","","Ases Del Patín"]
[null,13,null,null,null,null,null,null,null,null,"",null,null,null,null,null,null,null,null,null,null,null,"",null,null,"//","Chocó","","","Ases Del Patín Elite"]
[null,14,null,null,null,null,null,null,null,null,"",null,null,null,null,null,null,null,null,null,null,null,{"$f":"IF(Z29=\"//\",\"\",DATEDIF(Z29,$W$15,\"y\"))","v":""},null,null,"//","Córdoba","","","Aslan la Ceja"]
[null,15,null,null,null,null,null,null,null,null,"",null,null,null,null,null,null,null,null,null,null,null,"",null,null,"//","Cundinamarca","","","Asociacion Huehuetenango"]
[null,16,null,null,null,null,null,null,null,null,"",null,null,null,null,null,null,null,null,null,null,null,"",null,null,"//","Guajira","","","Asterix"]
[null,null,null,null,null,null,null,null,null,null,null,null,null,null,null,null,null,null,null,null,null,null,null,null,null,null,"Huila",null,null,"Astros Colombia"]
[null,null,null,null,null,null,null,null,null,null,null,null,null,null,null,null,null,null,null,null,null,null,null,null,null,null,"Magdalena ",null,null,"Avivas"]
[null,null,null,null,null,null,null,null,null,null,null,null,null,null,null,null,null,null,null,null,null,null,null,null,null,null,"Meta",null,null,"Avivas Rendimiento"]
[null,null,null,null,null,null,null,null,null,null,null,null,null,null,null,null,null,null,null,null,null,null,null,null,null,null,"Nariño",null,null,"Ay Sport"]
[null,null,"FIRMA DELEGADO DEL CLUB",null,null,null,null,null,"FIRMA COMISIÓN NACIONAL",null,null,null,null,"FIRMA APROBACIÓN DE LA LIGA",null,null,null,null,null,null,null,null,null,null,null,null,"Norte De Santander ",null,null,"Azores"]
[null,null,null,null,null,null,null,null,null,null,null,null,null,null,null,null,null,null,null,null,null,null,null,null,null,null,"Putumayo",null,null,"Bacatá Dc"]
[null,null,"DESCRIPCIÓN",null,null,null,"VALOR ESTABLECIDO EN RESOLUCIÓN","NÚMERO DE DEPORTISTAS",null,"VALOR A TRANSFERIR",null,null,null,null,null,null,null,null,null,null,null,null,null,null,null,null,"Quindío",null,null,"Bahia Skate de Santa Marta"]
[null,null,"VALOR INSCRIPCIÓN CLUB ORDINARIO",null,null,null,350000,{"$f":"+O11","v":1},null,{"$f":"O11*G39","v":350000},null,null,null,null,null,null,null,null,null,null,null,null,null,null,null,null,"Risaralda",null,null,"Berenice Moreno Patin"]
[null,null,"VALOR INSCRIPCIÓN CLUB EXTRAORDINARIO",null,null,null,525000,{"$f":"+S11","v":0},null,{"$f":"IF(H40=0,\"\",S11*G40)","v":""},null,null,null,null,null,null,null,null,null,null,null,null,null,null,null,null,"San Andres",null,null,"Bogotá Elite D.C"]
[null,null,"VALOR DEPORTISTA ORDINARIA",null,null,null,140000,{"$f":"IF(O11=1,COUNTA($C$16:$C$31,'PLANILLA#2 (17-32)'!C16:C31),0)","v":0},null,{"$f":"IF(H41=0,\"\",G41*H41)","v":""},null,null,null,null,null,null,null,null,null,null,null,null,null,null,null,null,"Santander",null,null,"Botero Sport"]
[null,null,"VALOR DEPORTISTA EXTRAORDINARIA",null,null,null,210000,{"$f":"IF(S11=1,COUNTA($C$16:$C$31,'PLANILLA#2 (17-32)'!C16:C31),0)","v":0},null,{"$f":"IF(H42=0,\"\",K11*G42)","v":""},null,null,null,"VOBO. FEDERACIÓN COLOMBIANA DE PATINAJE",null,null,null,null,null,null,null,null,null,null,null,null,"Sucre",null,null,"C- Patin La Ceja"]
[null,null,"VALOR TOTAL A TRANSFERIR POR EL CLUB",null,null,null,null,null,null,{"$f":"SUM(J39:L42)","v":350000},null,null,null,null,null,null,null,null,null,null,null,null,null,null,null,null,"Tolima ",null,null,"C.M.B. Cartagena"]
[null,null,null,null,null,null,null,null,null,null,null,null,null,null,null,null,null,null,null,null,null,null,null,null,null,null,"Valle",null,null,"C.P.F Fusagasugá"]
[null,null,null,null,null,null,null,null,null,null,null,null,null,null,null,null,null,null,null,null,null,null,null,null,null,null,"Bolivia",null,null,"Cacique´s Skating"]
[null,null,null,null,null,null,null,null,null,null,null,null,null,null,null,null,null,null,null,null,null,null,null,null,null,null,"Brasil",null,null,"Cadistur"]
[null,null,null,null,null,null,null,null,null,null,null,null,null,null,null,null,null,null,null,null,null,null,null,null,null,null,"Chile",null,null,"Cafeteros Chinchiná"]
[null,null,null,null,null,null,null,null,null,null,null,null,null,null,null,null,null,null,null,null,null,null,null,null,null,null,"Costa Rica",null,null,"Campeones"]
[null,null,null,null,null,null,null,null,null,null,null,null,null,null,null,null,null,null,null,null,null,null,null,null,null,null,"Ecuador ",null,null,"Campeones Risaralda"]
[null,null,null,null,null,null,null,null,null,null,null,null,null,null,null,null,null,null,null,null,null,null,null,null,null,null,"El Salvador",null,null,"Campeones Sobre Ruedas"]
[null,null,null,null,null,null,null,null,null,null,null,null,null,null,null,null,null,null,null,null,null,null,null,null,null,null,"Guatemala",null,null,"Capital Skate "]
[null,null,null,null,null,null,null,null,null,null,null,null,null,null,null,null,null,null,null,null,null,null,null,null,null,null,"Honduras",null,null,"Cardenales Patin "]
[null,null,null,null,null,null,null,null,null,null,null,null,null,null,null,null,null,null,null,null,null,null,null,null,null,null,"Mexico",null,null,"Cazadores"]
[null,null,null,null,null,null,null,null,null,null,null,null,null,null,null,null,null,null,null,null,null,null,null,null,null,null,"Panama ",null,null,"Cepav"]
[null,null,null,null,null,null,null,null,null,null,null,null,null,null,null,null,null,null,null,null,null,null,null,null,null,null,"Perú",null,null,"Champions Club"]
[null,null,null,null,null,null,null,null,null,null,null,null,null,null,null,null,null,null,null,null,null,null,null,null,null,null,"Venezuela",null,null,"Champions Malk Sport"]
[null,null,null,null,null,null,null,null,null,null,null,null,null,null,null,null,null,null,null,null,null,null,null,null,null,null,null,null,null,"Ciudad Pereira"]
[null,null,null,null,null,null,null,null,null,null,null,null,null,null,null,null,null,null,null,null,null,null,null,null,null,null,null,null,null,"Club 360 Skate"]
[null,null,null,null,null,null,null,null,null,null,null,null,null,null,null,null,null,null,null,null,null,null,null,null,null,null,null,null,null,"Club Meta"]
[null,null,null,null,null,null,null,null,null,null,null,null,null,null,null,null,null,null,null,null,null,null,null,null,null,null,null,null,null,"Cobos Dc"]
[null,null,null,null,null,null,null,null,null,null,null,null,null,null,null,null,null,null,null,null,null,null,null,null,null,null,null,null,null,"Codecar"]
[null,null,null,null,null,null,null,null,null,null,null,null,null,null,null,null,null,null,null,null,null,null,null,null,null,null,null,null,null,"Codersa"]
[null,null,null,null,null,null,null,null,null,null,null,null,null,null,null,null,null,null,null,null,null,null,null,null,null,null,null,null,null,"Colorados Skate"]
[null,null,null,null,null,null,null,null,null,null,null,null,null,null,null,null,null,null,null,null,null,null,null,null,null,null,null,null,null,"Compensar"]
[null,null,null,null,null,null,null,null,null,null,null,null,null,null,null,null,null,null,null,null,null,null,null,null,null,null,null,null,null,"Concord Skate"]
[null,null,null,null,null,null,null,null,null,null,null,null,null,null,null,null,null,null,null,null,null,null,null,null,null,null,null,null,null,"Copatín"]
[null,null,null,null,null,null,null,null,null,null,null,null,null,null,null,null,null,null,null,null,null,null,null,null,null,null,null,null,null,"Cordopatín"]
[null,null,null,null,null,null,null,null,null,null,null,null,null,null,null,null,null,null,null,null,null,null,null,null,null,null,null,null,null,"Corporación Drc"]
[null,null,null,null,null,null,null,null,null,null,null,null,null,null,null,null,null,null,null,null,null,null,null,null,null,null,null,null,null,"Corporación Lmt"]
[null,null,null,null,null,null,null,null,null,null,null,null,null,null,null,null,null,null,null,null,null,null,null,null,null,null,null,null,null,"Correcaminos en Acción"]
[null,null,null,null,null,null,null,null,null,null,null,null,null,null,null,null,null,null,null,null,null,null,null,null,null,null,null,null,null,"Correcaminos Neiva"]
[null,null,null,null,null,null,null,null,null,null,null,null,null,null,null,null,null,null,null,null,null,null,null,null,null,null,null,null,null,"Correcaminos San Gil"]
[null,null,null,null,null,null,null,null,null,null,null,null,null,null,null,null,null,null,null,null,null,null,null,null,null,null,null,null,null,"Correcaminos Sucre"]
[null,null,null,null,null,null,null,null,null,null,null,null,null,null,null,null,null,null,null,null,null,null,null,null,null,null,null,null,null,"Correpatin"]
[null,null,null,null,null,null,null,null,null,null,null,null,null,null,null,null,null,null,null,null,null,null,null,null,null,null,null,null,null,"Coyote "]
[null,null,null,null,null,null,null,null,null,null,null,null,null,null,null,null,null,null,null,null,null,null,null,null,null,null,null,null,null,"Cristalina Skating"]
[null,null,null,null,null,null,null,null,null,null,null,null,null,null,null,null,null,null,null,null,null,null,null,null,null,null,null,null,null,"Cyclones de Córdoba"]
[null,null,null,null,null,null,null,null,null,null,null,null,null,null,null,null,null,null,null,null,null,null,null,null,null,null,null,null,null,"Deportivo Ljm Skate"]
[null,null,null,null,null,null,null,null,null,null,null,null,null,null,null,null,null,null,null,null,null,null,null,null,null,null,null,null,null,"Deportivo Metropolitano Bogotá"]
[null,null,null,null,null,null,null,null,null,null,null,null,null,null,null,null,null,null,null,null,null,null,null,null,null,null,null,null,null,"Deportivo Midas"]
[null,null,null,null,null,null,null,null,null,null,null,null,null,null,null,null,null,null,null,null,null,null,null,null,null,null,null,null,null,"Deportivo Morichal"]
[null,null,null,null,null,null,null,null,null,null,null,null,null,null,null,null,null,null,null,null,null,null,null,null,null,null,null,null,null,"Deportivo Pasto"]
[null,null,null,null,null,null,null,null,null,null,null,null,null,null,null,null,null,null,null,null,null,null,null,null,null,null,null,null,null,"Deportivo Pro Skate "]
[null,null,null,null,null,null,null,null,null,null,null,null,null,null,null,null,null,null,null,null,null,null,null,null,null,null,null,null,null,"Deportivo Tayrona"]
[null,null,null,null,null,null,null,null,null,null,null,null,null,null,null,null,null,null,null,null,null,null,null,null,null,null,null,null,null,"Diamantes Del Patín"]
[null,null,null,null,null,null,null,null,null,null,null,null,null,null,null,null,null,null,null,null,null,null,null,null,null,null,null,null,null,"Diamond"]
[null,null,null,null,null,null,null,null,null,null,null,null,null,null,null,null,null,null,null,null,null,null,null,null,null,null,null,null,null,"Disnatia Elite"]
[null,null,null,null,null,null,null,null,null,null,null,null,null,null,null,null,null,null,null,null,null,null,null,null,null,null,null,null,null,"Dm Bogotá"]
[null,null,null,null,null,null,null,null,null,null,null,null,null,null,null,null,null,null,null,null,null,null,null,null,null,null,null,null,null,"DSA Orgullo Opita"]
[null,null,null,null,null,null,null,null,null,null,null,null,null,null,null,null,null,null,null,null,null,null,null,null,null,null,null,null,null,"Ecopatín"]
[null,null,null,null,null,null,null,null,null,null,null,null,null,null,null,null,null,null,null,null,null,null,null,null,null,null,null,null,null,"Elite Atlantico"]
[null,null,null,null,null,null,null,null,null,null,null,null,null,null,null,null,null,null,null,null,null,null,null,null,null,null,null,null,null,"Elite Fusagasuga "]
[null,null,null,null,null,null,null,null,null,null,null,null,null,null,null,null,null,null,null,null,null,null,null,null,null,null,null,null,null,"Elite Skate"]
[null,null,null,null,null,null,null,null,null,null,null,null,null,null,null,null,null,null,null,null,null,null,null,null,null,null,null,null,null,"Elite Skate Palmira"]
[null,null,null,null,null,null,null,null,null,null,null,null,null,null,null,null,null,null,null,null,null,null,null,null,null,null,null,null,null,"Elsa Mendoza"]
[null,null,null,null,null,null,null,null,null,null,null,null,null,null,null,null,null,null,null,null,null,null,null,null,null,null,null,null,null,"Embajadores Nobsa"]
[null,null,null,null,null,null,null,null,null,null,null,null,null,null,null,null,null,null,null,null,null,null,null,null,null,null,null,null,null,"Energy Af"]
[null,null,null,null,null,null,null,null,null,null,null,null,null,null,null,null,null,null,null,null,null,null,null,null,null,null,null,null,null,"Esfodeva"]
[null,null,null,null,null,null,null,null,null,null,null,null,null,null,null,null,null,null,null,null,null,null,null,null,null,null,null,null,null,"Esparta"]
[null,null,null,null,null,null,null,null,null,null,null,null,null,null,null,null,null,null,null,null,null,null,null,null,null,null,null,null,null,"Espartanos"]
[null,null,null,null,null,null,null,null,null,null,null,null,null,null,null,null,null,null,null,null,null,null,null,null,null,null,null,null,null,"Estrellas Del Patín"]
[null,null,null,null,null,null,null,null,null,null,null,null,null,null,null,null,null,null,null,null,null,null,null,null,null,null,null,null,null,"Estrellas en Linea del Milenio"]
[null,null,null,null,null,null,null,null,null,null,null,null,null,null,null,null,null,null,null,null,null,null,null,null,null,null,null,null,null,"Felinos Del Valle "]
[null,null,null,null,null,null,null,null,null,null,null,null,null,null,null,null,null,null,null,null,null,null,null,null,null,null,null,null,null,"Fenix"]
[null,null,null,null,null,null,null,null,null,null,null,null,null,null,null,null,null,null,null,null,null,null,null,null,null,null,null,null,null,"Fénix On Fire"]
[null,null,null,null,null,null,null,null,null,null,null,null,null,null,null,null,null,null,null,null,null,null,null,null,null,null,null,null,null,"Fénix Perla Del Otún"]
[null,null,null,null,null,null,null,null,null,null,null,null,null,null,null,null,null,null,null,null,null,null,null,null,null,null,null,null,null,"Fenix Skate Pg "]
[null,null,null,null,null,null,null,null,null,null,null,null,null,null,null,null,null,null,null,null,null,null,null,null,null,null,null,null,null,"Fire Skate"]
[null,null,null,null,null,null,null,null,null,null,null,null,null,null,null,null,null,null,null,null,null,null,null,null,null,null,null,null,null,"First Skating Buga"]
[null,null,null,null,null,null,null,null,null,null,null,null,null,null,null,null,null,null,null,null,null,null,null,null,null,null,null,null,null,"Flash Star Ocaña"]
[null,null,null,null,null,null,null,null,null,null,null,null,null,null,null,null,null,null,null,null,null,null,null,null,null,null,null,null,null,"Four Elements Garzon"]
[null,null,null,null,null,null,null,null,null,null,null,null,null,null,null,null,null,null,null,null,null,null,null,null,null,null,null,null,null,"Four Wheels"]
[null,null,null,null,null,null,null,null,null,null,null,null,null,null,null,null,null,null,null,null,null,null,null,null,null,null,null,null,null,"Fuera De Serie "]
[null,null,null,null,null,null,null,null,null,null,null,null,null,null,null,null,null,null,null,null,null,null,null,null,null,null,null,null,null,"Fundación Los Delfines"]
[null,null,null,null,null,null,null,null,null,null,null,null,null,null,null,null,null,null,null,null,null,null,null,null,null,null,null,null,null,"Fundación Salud Club"]
[null,null,null,null,null,null,null,null,null,null,null,null,null,null,null,null,null,null,null,null,null,null,null,null,null,null,null,null,null,"Fundacion Social Cooplarosa"]
[null,null,null,null,null,null,null,null,null,null,null,null,null,null,null,null,null,null,null,null,null,null,null,null,null,null,null,null,null,"Fundacion Speed Skate"]
[null,null,null,null,null,null,null,null,null,null,null,null,null,null,null,null,null,null,null,null,null,null,null,null,null,null,null,null,null,"Futuros Campeones"]
[null,null,null,null,null,null,null,null,null,null,null,null,null,null,null,null,null,null,null,null,null,null,null,null,null,null,null,null,null,"Gente Nueva"]
[null,null,null,null,null,null,null,null,null,null,null,null,null,null,null,null,null,null,null,null,null,null,null,null,null,null,null,null,null,"Giraskate"]
[null,null,null,null,null,null,null,null,null,null,null,null,null,null,null,null,null,null,null,null,null,null,null,null,null,null,null,null,null,"Gold Lion"]
[null,null,null,null,null,null,null,null,null,null,null,null,null,null,null,null,null,null,null,null,null,null,null,null,null,null,null,null,null,"Gold Skate"]
[null,null,null,null,null,null,null,null,null,null,null,null,null,null,null,null,null,null,null,null,null,null,null,null,null,null,null,null,null,"Grandes de Corazon"]
[null,null,null,null,null,null,null,null,null,null,null,null,null,null,null,null,null,null,null,null,null,null,null,null,null,null,null,null,null,"Grandes Paisas "]
[null,null,null,null,null,null,null,null,null,null,null,null,null,null,null,null,null,null,null,null,null,null,null,null,null,null,null,null,null,"Gsl Skating "]
[null,null,null,null,null,null,null,null,null,null,null,null,null,null,null,null,null,null,null,null,null,null,null,null,null,null,null,null,null,"Guacari Skate"]
[null,null,null,null,null,null,null,null,null,null,null,null,null,null,null,null,null,null,null,null,null,null,null,null,null,null,null,null,null,"Guerreros 2.0"]
[null,null,null,null,null,null,null,null,null,null,null,null,null,null,null,null,null,null,null,null,null,null,null,null,null,null,null,null,null,"Gygyskate - Venezuela"]
[null,null,null,null,null,null,null,null,null,null,null,null,null,null,null,null,null,null,null,null,null,null,null,null,null,null,null,null,null,"Halcones de Santander"]
[null,null,null,null,null,null,null,null,null,null,null,null,null,null,null,null,null,null,null,null,null,null,null,null,null,null,null,null,null,"Halcones Dorados"]
[null,null,null,null,null,null,null,null,null,null,null,null,null,null,null,null,null,null,null,null,null,null,null,null,null,null,null,null,null,"Halcones Dorados Maicao"]
[null,null,null,null,null,null,null,null,null,null,null,null,null,null,null,null,null,null,null,null,null,null,null,null,null,null,null,null,null,"Heroes"]
[null,null,null,null,null,null,null,null,null,null,null,null,null,null,null,null,null,null,null,null,null,null,null,null,null,null,null,null,null,"Hormigueros F.N.R"]
[null,null,null,null,null,null,null,null,null,null,null,null,null,null,null,null,null,null,null,null,null,null,null,null,null,null,null,null,null,"Hot Wheels Skate"]
[null,null,null,null,null,null,null,null,null,null,null,null,null,null,null,null,null,null,null,null,null,null,null,null,null,null,null,null,null,"Huellas"]
[null,null,null,null,null,null,null,null,null,null,null,null,null,null,null,null,null,null,null,null,null,null,null,null,null,null,null,null,null,"Huellas del Cauca"]
[null,null,null,null,null,null,null,null,null,null,null,null,null,null,null,null,null,null,null,null,null,null,null,null,null,null,null,null,null,"Hv Wayra"]
[null,null,null,null,null,null,null,null,null,null,null,null,null,null,null,null,null,null,null,null,null,null,null,null,null,null,null,null,null,"Hyper Speed"]
[null,null,null,null,null,null,null,null,null,null,null,null,null,null,null,null,null,null,null,null,null,null,null,null,null,null,null,null,null,"Icpt Barinas "]
[null,null,null,null,null,null,null,null,null,null,null,null,null,null,null,null,null,null,null,null,null,null,null,null,null,null,null,null,null,"Icpt Buga "]
[null,null,null,null,null,null,null,null,null,null,null,null,null,null,null,null,null,null,null,null,null,null,null,null,null,null,null,null,null,"Infantas"]
[null,null,null,null,null,null,null,null,null,null,null,null,null,null,null,null,null,null,null,null,null,null,null,null,null,null,null,null,null,"Inter San Pedro"]
[null,null,null,null,null,null,null,null,null,null,null,null,null,null,null,null,null,null,null,null,null,null,null,null,null,null,null,null,null,"Iron Skate"]
[null,null,null,null,null,null,null,null,null,null,null,null,null,null,null,null,null,null,null,null,null,null,null,null,null,null,null,null,null,"J.M.C. De Rionegro"]
[null,null,null,null,null,null,null,null,null,null,null,null,null,null,null,null,null,null,null,null,null,null,null,null,null,null,null,null,null,"J.P. Ara"]
[null,null,null,null,null,null,null,null,null,null,null,null,null,null,null,null,null,null,null,null,null,null,null,null,null,null,null,null,null,"Jaguar"]
[null,null,null,null,null,null,null,null,null,null,null,null,null,null,null,null,null,null,null,null,null,null,null,null,null,null,null,null,null,"Jaguares Arauca"]
[null,null,null,null,null,null,null,null,null,null,null,null,null,null,null,null,null,null,null,null,null,null,null,null,null,null,null,null,null,"Jerry Gaviria"]
[null,null,null,null,null,null,null,null,null,null,null,null,null,null,null,null,null,null,null,null,null,null,null,null,null,null,null,null,null,"Jg Nicholls"]
[null,null,null,null,null,null,null,null,null,null,null,null,null,null,null,null,null,null,null,null,null,null,null,null,null,null,null,null,null,"Jhc"]
[null,null,null,null,null,null,null,null,null,null,null,null,null,null,null,null,null,null,null,null,null,null,null,null,null,null,null,null,null,"Jlbg - Guerreros Del Patín Jamundí"]
[null,null,null,null,null,null,null,null,null,null,null,null,null,null,null,null,null,null,null,null,null,null,null,null,null,null,null,null,null,"José Maria Cordoba de Rionegro"]
[null,null,null,null,null,null,null,null,null,null,null,null,null,null,null,null,null,null,null,null,null,null,null,null,null,null,null,null,null,"Kayros Santander"]
[null,null,null,null,null,null,null,null,null,null,null,null,null,null,null,null,null,null,null,null,null,null,null,null,null,null,null,null,null,"La Saeta Sport"]
[null,null,null,null,null,null,null,null,null,null,null,null,null,null,null,null,null,null,null,null,null,null,null,null,null,null,null,null,null,"Landi Piedecuesta"]
[null,null,null,null,null,null,null,null,null,null,null,null,null,null,null,null,null,null,null,null,null,null,null,null,null,null,null,null,null,"Laponte"]
[null,null,null,null,null,null,null,null,null,null,null,null,null,null,null,null,null,null,null,null,null,null,null,null,null,null,null,null,null,"Las Panteras Santander"]
[null,null,null,null,null,null,null,null,null,null,null,null,null,null,null,null,null,null,null,null,null,null,null,null,null,null,null,null,null,"Legionarios De Tunja"]
[null,null,null,null,null,null,null,null,null,null,null,null,null,null,null,null,null,null,null,null,null,null,null,null,null,null,null,null,null,"Leones de Rionegro"]
[null,null,null,null,null,null,null,null,null,null,null,null,null,null,null,null,null,null,null,null,null,null,null,null,null,null,null,null,null,"Licofa Skating Aruba"]
[null,null,null,null,null,null,null,null,null,null,null,null,null,null,null,null,null,null,null,null,null,null,null,null,null,null,null,null,null,"Lince"]
[null,null,null,null,null,null,null,null,null,null,null,null,null,null,null,null,null,null,null,null,null,null,null,null,null,null,null,null,null,"Linces Skate"]
[null,null,null,null,null,null,null,null,null,null,null,null,null,null,null,null,null,null,null,null,null,null,null,null,null,null,null,null,null,"Lions Skate Facatativa"]
[null,null,null,null,null,null,null,null,null,null,null,null,null,null,null,null,null,null,null,null,null,null,null,null,null,null,null,null,null,"Llaneros patín"]
[null,null,null,null,null,null,null,null,null,null,null,null,null,null,null,null,null,null,null,null,null,null,null,null,null,null,null,null,null,"Lp Elite"]
[null,null,null,null,null,null,null,null,null,null,null,null,null,null,null,null,null,null,null,null,null,null,null,null,null,null,null,null,null,"Lpb Buga"]
[null,null,null,null,null,null,null,null,null,null,null,null,null,null,null,null,null,null,null,null,null,null,null,null,null,null,null,null,null,"Mar Caribe"]
[null,null,null,null,null,null,null,null,null,null,null,null,null,null,null,null,null,null,null,null,null,null,null,null,null,null,null,null,null,"Marca Caribe"]
[null,null,null,null,null,null,null,null,null,null,null,null,null,null,null,null,null,null,null,null,null,null,null,null,null,null,null,null,null,"Marcaribe"]
[null,null,null,null,null,null,null,null,null,null,null,null,null,null,null,null,null,null,null,null,null,null,null,null,null,null,null,null,null,"Marcelo Plasencia"]
[null,null,null,null,null,null,null,null,null,null,null,null,null,null,null,null,null,null,null,null,null,null,null,null,null,null,null,null,null,"Mario Duran"]
[null,null,null,null,null,null,null,null,null,null,null,null,null,null,null,null,null,null,null,null,null,null,null,null,null,null,null,null,null,"MegaRollers Pitalito"]
[null,null,null,null,null,null,null,null,null,null,null,null,null,null,null,null,null,null,null,null,null,null,null,null,null,null,null,null,null,"Mente Ganadora"]
[null,null,null,null,null,null,null,null,null,null,null,null,null,null,null,null,null,null,null,null,null,null,null,null,null,null,null,null,null,"Meta"]
[null,null,null,null,null,null,null,null,null,null,null,null,null,null,null,null,null,null,null,null,null,null,null,null,null,null,null,null,null,"Metropolitano"]
[null,null,null,null,null,null,null,null,null,null,null,null,null,null,null,null,null,null,null,null,null,null,null,null,null,null,null,null,null,"México"]
[null,null,null,null,null,null,null,null,null,null,null,null,null,null,null,null,null,null,null,null,null,null,null,null,null,null,null,null,null,"Milenium"]
[null,null,null,null,null,null,null,null,null,null,null,null,null,null,null,null,null,null,null,null,null,null,null,null,null,null,null,null,null,"Milenium Sobre Ruedas"]
[null,null,null,null,null,null,null,null,null,null,null,null,null,null,null,null,null,null,null,null,null,null,null,null,null,null,null,null,null,"Ml Sobre Ruedas Girardot"]
[null,null,null,null,null,null,null,null,null,null,null,null,null,null,null,null,null,null,null,null,null,null,null,null,null,null,null,null,null,"Morichal"]
[null,null,null,null,null,null,null,null,null,null,null,null,null,null,null,null,null,null,null,null,null,null,null,null,null,null,null,null,null,"Mrc Ibague"]
[null,null,null,null,null,null,null,null,null,null,null,null,null,null,null,null,null,null,null,null,null,null,null,null,null,null,null,null,null,"Mrc Tolima "]
[null,null,null,null,null,null,null,null,null,null,null,null,null,null,null,null,null,null,null,null,null,null,null,null,null,null,null,null,null,"Msc Skate Palmira"]
[null,null,null,null,null,null,null,null,null,null,null,null,null,null,null,null,null,null,null,null,null,null,null,null,null,null,null,null,null,"Nativos"]
[null,null,null,null,null,null,null,null,null,null,null,null,null,null,null,null,null,null,null,null,null,null,null,null,null,null,null,null,null,"Nereidas"]
[null,null,null,null,null,null,null,null,null,null,null,null,null,null,null,null,null,null,null,null,null,null,null,null,null,null,null,null,null,"Nieves Jab Club"]
[null,null,null,null,null,null,null,null,null,null,null,null,null,null,null,null,null,null,null,null,null,null,null,null,null,null,null,null,null,"Nl Racing Taiwan"]
[null,null,null,null,null,null,null,null,null,null,null,null,null,null,null,null,null,null,null,null,null,null,null,null,null,null,null,null,null,"Nómadas Del Caribe"]
[null,null,null,null,null,null,null,null,null,null,null,null,null,null,null,null,null,null,null,null,null,null,null,null,null,null,null,null,null,"Norte Patin"]
[null,null,null,null,null,null,null,null,null,null,null,null,null,null,null,null,null,null,null,null,null,null,null,null,null,null,null,null,null,"North Skate "]
[null,null,null,null,null,null,null,null,null,null,null,null,null,null,null,null,null,null,null,null,null,null,null,null,null,null,null,null,null,"Nueva Generación de Arjona"]
[null,null,null,null,null,null,null,null,null,null,null,null,null,null,null,null,null,null,null,null,null,null,null,null,null,null,null,null,null,"Obelisco Venezuela"]
[null,null,null,null,null,null,null,null,null,null,null,null,null,null,null,null,null,null,null,null,null,null,null,null,null,null,null,null,null,"Oikos"]
[null,null,null,null,null,null,null,null,null,null,null,null,null,null,null,null,null,null,null,null,null,null,null,null,null,null,null,null,null,"Olaya Skates"]
[null,null,null,null,null,null,null,null,null,null,null,null,null,null,null,null,null,null,null,null,null,null,null,null,null,null,null,null,null,"Olympus San Gil "]
[null,null,null,null,null,null,null,null,null,null,null,null,null,null,null,null,null,null,null,null,null,null,null,null,null,null,null,null,null,"One Sport Arauca"]
[null,null,null,null,null,null,null,null,null,null,null,null,null,null,null,null,null,null,null,null,null,null,null,null,null,null,null,null,null,"Orgullo Paisa"]
[null,null,null,null,null,null,null,null,null,null,null,null,null,null,null,null,null,null,null,null,null,null,null,null,null,null,null,null,null,"Orión"]
[null,null,null,null,null,null,null,null,null,null,null,null,null,null,null,null,null,null,null,null,null,null,null,null,null,null,null,null,null,"Oso Sanchez"]
[null,null,null,null,null,null,null,null,null,null,null,null,null,null,null,null,null,null,null,null,null,null,null,null,null,null,null,null,null,"Pacal"]
[null,null,null,null,null,null,null,null,null,null,null,null,null,null,null,null,null,null,null,null,null,null,null,null,null,null,null,null,null,"Paelco "]
[null,null,null,null,null,null,null,null,null,null,null,null,null,null,null,null,null,null,null,null,null,null,null,null,null,null,null,null,null,"Paen"]
[null,null,null,null,null,null,null,null,null,null,null,null,null,null,null,null,null,null,null,null,null,null,null,null,null,null,null,null,null,"Palmira Skate"]
[null,null,null,null,null,null,null,null,null,null,null,null,null,null,null,null,null,null,null,null,null,null,null,null,null,null,null,null,null,"Pamares Team"]
[null,null,null,null,null,null,null,null,null,null,null,null,null,null,null,null,null,null,null,null,null,null,null,null,null,null,null,null,null,"Panamericano"]
[null,null,null,null,null,null,null,null,null,null,null,null,null,null,null,null,null,null,null,null,null,null,null,null,null,null,null,null,null,"Panteras"]
[null,null,null,null,null,null,null,null,null,null,null,null,null,null,null,null,null,null,null,null,null,null,null,null,null,null,null,null,null,"Panteras Barranca Bermeja"]
[null,null,null,null,null,null,null,null,null,null,null,null,null,null,null,null,null,null,null,null,null,null,null,null,null,null,null,null,null,"Panteras Meta"]
[null,null,null,null,null,null,null,null,null,null,null,null,null,null,null,null,null,null,null,null,null,null,null,null,null,null,null,null,null,"Panther Skate Cota"]
[null,null,null,null,null,null,null,null,null,null,null,null,null,null,null,null,null,null,null,null,null,null,null,null,null,null,null,null,null,"Patin Bello"]
[null,null,null,null,null,null,null,null,null,null,null,null,null,null,null,null,null,null,null,null,null,null,null,null,null,null,null,null,null,"Patín Caribe "]
[null,null,null,null,null,null,null,null,null,null,null,null,null,null,null,null,null,null,null,null,null,null,null,null,null,null,null,null,null,"Patin Club"]
[null,null,null,null,null,null,null,null,null,null,null,null,null,null,null,null,null,null,null,null,null,null,null,null,null,null,null,null,null,"Patin Club Buga"]
[null,null,null,null,null,null,null,null,null,null,null,null,null,null,null,null,null,null,null,null,null,null,null,null,null,null,null,null,null,"Patín Club La Jagua"]
[null,null,null,null,null,null,null,null,null,null,null,null,null,null,null,null,null,null,null,null,null,null,null,null,null,null,null,null,null,"Patín Dorado Espinal"]
[null,null,null,null,null,null,null,null,null,null,null,null,null,null,null,null,null,null,null,null,null,null,null,null,null,null,null,null,null,"Patin Flyer De Yumbo"]
[null,null,null,null,null,null,null,null,null,null,null,null,null,null,null,null,null,null,null,null,null,null,null,null,null,null,null,null,null,"Patín Galeras"]
[null,null,null,null,null,null,null,null,null,null,null,null,null,null,null,null,null,null,null,null,null,null,null,null,null,null,null,null,null,"Patin K-Ribe Club. Pkc"]
[null,null,null,null,null,null,null,null,null,null,null,null,null,null,null,null,null,null,null,null,null,null,null,null,null,null,null,null,null,"Patín Latino"]
[null,null,null,null,null,null,null,null,null,null,null,null,null,null,null,null,null,null,null,null,null,null,null,null,null,null,null,null,null,"Patinar Moniquirá"]
[null,null,null,null,null,null,null,null,null,null,null,null,null,null,null,null,null,null,null,null,null,null,null,null,null,null,null,null,null,"Patincol"]
[null,null,null,null,null,null,null,null,null,null,null,null,null,null,null,null,null,null,null,null,null,null,null,null,null,null,null,null,null,"Patinemos Tds"]
[null,null,null,null,null,null,null,null,null,null,null,null,null,null,null,null,null,null,null,null,null,null,null,null,null,null,null,null,null,"Patriotas Bc"]
[null,null,null,null,null,null,null,null,null,null,null,null,null,null,null,null,null,null,null,null,null,null,null,null,null,null,null,null,null,"Patriotas en linea"]
[null,null,null,null,null,null,null,null,null,null,null,null,null,null,null,null,null,null,null,null,null,null,null,null,null,null,null,null,null,"Pcp Cali"]
[null,null,null,null,null,null,null,null,null,null,null,null,null,null,null,null,null,null,null,null,null,null,null,null,null,null,null,null,null,"Pegasos Elite"]
[null,null,null,null,null,null,null,null,null,null,null,null,null,null,null,null,null,null,null,null,null,null,null,null,null,null,null,null,null,"Pily Patín "]
[null,null,null,null,null,null,null,null,null,null,null,null,null,null,null,null,null,null,null,null,null,null,null,null,null,null,null,null,null,"Ponys"]
[null,null,null,null,null,null,null,null,null,null,null,null,null,null,null,null,null,null,null,null,null,null,null,null,null,null,null,null,null,"Power Skate"]
[null,null,null,null,null,null,null,null,null,null,null,null,null,null,null,null,null,null,null,null,null,null,null,null,null,null,null,null,null,"Pro Skate Meta"]
[null,null,null,null,null,null,null,null,null,null,null,null,null,null,null,null,null,null,null,null,null,null,null,null,null,null,null,null,null,"Pro Skate Santander"]
[null,null,null,null,null,null,null,null,null,null,null,null,null,null,null,null,null,null,null,null,null,null,null,null,null,null,null,null,null,"Proelite Dm"]
[null,null,null,null,null,null,null,null,null,null,null,null,null,null,null,null,null,null,null,null,null,null,null,null,null,null,null,null,null,"Puerto López Skating Club"]
[null,null,null,null,null,null,null,null,null,null,null,null,null,null,null,null,null,null,null,null,null,null,null,null,null,null,null,null,null,"Pumas"]
[null,null,null,null,null,null,null,null,null,null,null,null,null,null,null,null,null,null,null,null,null,null,null,null,null,null,null,null,null,"Pyroz"]
[null,null,null,null,null,null,null,null,null,null,null,null,null,null,null,null,null,null,null,null,null,null,null,null,null,null,null,null,null,"Real Cartagena"]
[null,null,null,null,null,null,null,null,null,null,null,null,null,null,null,null,null,null,null,null,null,null,null,null,null,null,null,null,null,"Real Cerete"]
[null,null,null,null,null,null,null,null,null,null,null,null,null,null,null,null,null,null,null,null,null,null,null,null,null,null,null,null,null,"Real Funza"]
[null,null,null,null,null,null,null,null,null,null,null,null,null,null,null,null,null,null,null,null,null,null,null,null,null,null,null,null,null,"Real Juego Limpio"]
[null,null,null,null,null,null,null,null,null,null,null,null,null,null,null,null,null,null,null,null,null,null,null,null,null,null,null,null,null,"Real Skate"]
[null,null,null,null,null,null,null,null,null,null,null,null,null,null,null,null,null,null,null,null,null,null,null,null,null,null,null,null,null,"Real Skate Cauca"]
[null,null,null,null,null,null,null,null,null,null,null,null,null,null,null,null,null,null,null,null,null,null,null,null,null,null,null,null,null,"Relámpago"]
[null,null,null,null,null,null,null,null,null,null,null,null,null,null,null,null,null,null,null,null,null,null,null,null,null,null,null,null,null,"Relámpago Valle"]
[null,null,null,null,null,null,null,null,null,null,null,null,null,null,null,null,null,null,null,null,null,null,null,null,null,null,null,null,null,"Renesme Del Tolima"]
[null,null,null,null,null,null,null,null,null,null,null,null,null,null,null,null,null,null,null,null,null,null,null,null,null,null,null,null,null,"Renesmee"]
[null,null,null,null,null,null,null,null,null,null,null,null,null,null,null,null,null,null,null,null,null,null,null,null,null,null,null,null,null,"Rockets"]
[null,null,null,null,null,null,null,null,null,null,null,null,null,null,null,null,null,null,null,null,null,null,null,null,null,null,null,null,null,"Roller Skate Tolima"]
[null,null,null,null,null,null,null,null,null,null,null,null,null,null,null,null,null,null,null,null,null,null,null,null,null,null,null,null,null,"Roller Speed"]
[null,null,null,null,null,null,null,null,null,null,null,null,null,null,null,null,null,null,null,null,null,null,null,null,null,null,null,null,null,"Royal Skate"]
[null,null,null,null,null,null,null,null,null,null,null,null,null,null,null,null,null,null,null,null,null,null,null,null,null,null,null,null,null,"Rueda Patín "]
[null,null,null,null,null,null,null,null,null,null,null,null,null,null,null,null,null,null,null,null,null,null,null,null,null,null,null,null,null,"Ruedas de Fuego"]
[null,null,null,null,null,null,null,null,null,null,null,null,null,null,null,null,null,null,null,null,null,null,null,null,null,null,null,null,null,"Ruedas de Fuego Ipiales"]
[null,null,null,null,null,null,null,null,null,null,null,null,null,null,null,null,null,null,null,null,null,null,null,null,null,null,null,null,null,"Ruedas De Fuego Nariño"]
[null,null,null,null,null,null,null,null,null,null,null,null,null,null,null,null,null,null,null,null,null,null,null,null,null,null,null,null,null,"Ruedas de Fuego Uribia"]
[null,null,null,null,null,null,null,null,null,null,null,null,null,null,null,null,null,null,null,null,null,null,null,null,null,null,null,null,null,"Runners Caldas"]
[null,null,null,null,null,null,null,null,null,null,null,null,null,null,null,null,null,null,null,null,null,null,null,null,null,null,null,null,null,"Saiyan"]
[null,null,null,null,null,null,null,null,null,null,null,null,null,null,null,null,null,null,null,null,null,null,null,null,null,null,null,null,null,"Samaria"]
[null,null,null,null,null,null,null,null,null,null,null,null,null,null,null,null,null,null,null,null,null,null,null,null,null,null,null,null,null,"Samaria Club"]
[null,null,null,null,null,null,null,null,null,null,null,null,null,null,null,null,null,null,null,null,null,null,null,null,null,null,null,null,null,"Samarios Club"]
[null,null,null,null,null,null,null,null,null,null,null,null,null,null,null,null,null,null,null,null,null,null,null,null,null,null,null,null,null,"Sampues Sobre Ruedas"]
[null,null,null,null,null,null,null,null,null,null,null,null,null,null,null,null,null,null,null,null,null,null,null,null,null,null,null,null,null,"San Pedro Sobre Ruedas"]
[null,null,null,null,null,null,null,null,null,null,null,null,null,null,null,null,null,null,null,null,null,null,null,null,null,null,null,null,null,"San Sebastian "]
[null,null,null,null,null,null,null,null,null,null,null,null,null,null,null,null,null,null,null,null,null,null,null,null,null,null,null,null,null,"San Silvestre"]
[null,null,null,null,null,null,null,null,null,null,null,null,null,null,null,null,null,null,null,null,null,null,null,null,null,null,null,null,null,"Santa Marta Elite"]
[null,null,null,null,null,null,null,null,null,null,null,null,null,null,null,null,null,null,null,null,null,null,null,null,null,null,null,null,null,"Santa Marta Elite "]
[null,null,null,null,null,null,null,null,null,null,null,null,null,null,null,null,null,null,null,null,null,null,null,null,null,null,null,null,null,"Santa Rosa Sobre Ruedas"]
[null,null,null,null,null,null,null,null,null,null,null,null,null,null,null,null,null,null,null,null,null,null,null,null,null,null,null,null,null,"Sbm"]
[null,null,null,null,null,null,null,null,null,null,null,null,null,null,null,null,null,null,null,null,null,null,null,null,null,null,null,null,null,"Selección Ecuador"]
[null,null,null,null,null,null,null,null,null,null,null,null,null,null,null,null,null,null,null,null,null,null,null,null,null,null,null,null,null,"Semillas"]
[null,null,null,null,null,null,null,null,null,null,null,null,null,null,null,null,null,null,null,null,null,null,null,null,null,null,null,null,null,"Semillas Bolívar"]
[null,null,null,null,null,null,null,null,null,null,null,null,null,null,null,null,null,null,null,null,null,null,null,null,null,null,null,null,null,"Semillas Del Meta"]
[null,null,null,null,null,null,null,null,null,null,null,null,null,null,null,null,null,null,null,null,null,null,null,null,null,null,null,null,null,"Semillas Team"]
[null,null,null,null,null,null,null,null,null,null,null,null,null,null,null,null,null,null,null,null,null,null,null,null,null,null,null,null,null,"Semillas Valle"]
[null,null,null,null,null,null,null,null,null,null,null,null,null,null,null,null,null,null,null,null,null,null,null,null,null,null,null,null,null,"Shark Skate"]
[null,null,null,null,null,null,null,null,null,null,null,null,null,null,null,null,null,null,null,null,null,null,null,null,null,null,null,null,null,"Sin Fronteras"]
[null,null,null,null,null,null,null,null,null,null,null,null,null,null,null,null,null,null,null,null,null,null,null,null,null,null,null,null,null,"Sin Fronteras Antioquia"]
[null,null,null,null,null,null,null,null,null,null,null,null,null,null,null,null,null,null,null,null,null,null,null,null,null,null,null,null,null,"Sin Limites"]
[null,null,null,null,null,null,null,null,null,null,null,null,null,null,null,null,null,null,null,null,null,null,null,null,null,null,null,null,null,"Sin Limites Lp"]
[null,null,null,null,null,null,null,null,null,null,null,null,null,null,null,null,null,null,null,null,null,null,null,null,null,null,null,null,null,"Since Skate"]
[null,null,null,null,null,null,null,null,null,null,null,null,null,null,null,null,null,null,null,null,null,null,null,null,null,null,null,null,null,"Sincelejo Sobre Ruedas"]
[null,null,null,null,null,null,null,null,null,null,null,null,null,null,null,null,null,null,null,null,null,null,null,null,null,null,null,null,null,"Sintramienergetica"]
[null,null,null,null,null,null,null,null,null,null,null,null,null,null,null,null,null,null,null,null,null,null,null,null,null,null,null,null,null,"Skate 360"]
[null,null,null,null,null,null,null,null,null,null,null,null,null,null,null,null,null,null,null,null,null,null,null,null,null,null,null,null,null,"Skate Boy"]
[null,null,null,null,null,null,null,null,null,null,null,null,null,null,null,null,null,null,null,null,null,null,null,null,null,null,null,null,null,"Skate Life"]
[null,null,null,null,null,null,null,null,null,null,null,null,null,null,null,null,null,null,null,null,null,null,null,null,null,null,null,null,null,"Skate Line"]
[null,null,null,null,null,null,null,null,null,null,null,null,null,null,null,null,null,null,null,null,null,null,null,null,null,null,null,null,null,"Skate Speed Villa Del Rosario"]
[null,null,null,null,null,null,null,null,null,null,null,null,null,null,null,null,null,null,null,null,null,null,null,null,null,null,null,null,null,"Skate Team"]
[null,null,null,null,null,null,null,null,null,null,null,null,null,null,null,null,null,null,null,null,null,null,null,null,null,null,null,null,null,"Skate Team Perú"]
[null,null,null,null,null,null,null,null,null,null,null,null,null,null,null,null,null,null,null,null,null,null,null,null,null,null,null,null,null,"Skate Wheels"]
[null,null,null,null,null,null,null,null,null,null,null,null,null,null,null,null,null,null,null,null,null,null,null,null,null,null,null,null,null,"Skaters Palmira"]
[null,null,null,null,null,null,null,null,null,null,null,null,null,null,null,null,null,null,null,null,null,null,null,null,null,null,null,null,null,"Skating Castilla"]
[null,null,null,null,null,null,null,null,null,null,null,null,null,null,null,null,null,null,null,null,null,null,null,null,null,null,null,null,null,"Sliders"]
[null,null,null,null,null,null,null,null,null,null,null,null,null,null,null,null,null,null,null,null,null,null,null,null,null,null,null,null,null,"Soacha Elite"]
[null,null,null,null,null,null,null,null,null,null,null,null,null,null,null,null,null,null,null,null,null,null,null,null,null,null,null,null,null,"Soacha Elite Rendimiento"]
[null,null,null,null,null,null,null,null,null,null,null,null,null,null,null,null,null,null,null,null,null,null,null,null,null,null,null,null,null,"Sobre Ruedas Bogota"]
[null,null,null,null,null,null,null,null,null,null,null,null,null,null,null,null,null,null,null,null,null,null,null,null,null,null,null,null,null,"Sobre Ruedas Santa Rosa Bolívar"]
[null,null,null,null,null,null,null,null,null,null,null,null,null,null,null,null,null,null,null,null,null,null,null,null,null,null,null,null,null,"Speed Cats"]
[null,null,null,null,null,null,null,null,null,null,null,null,null,null,null,null,null,null,null,null,null,null,null,null,null,null,null,null,null,"Speed Force"]
[null,null,null,null,null,null,null,null,null,null,null,null,null,null,null,null,null,null,null,null,null,null,null,null,null,null,null,null,null,"Speed Line"]
[null,null,null,null,null,null,null,null,null,null,null,null,null,null,null,null,null,null,null,null,null,null,null,null,null,null,null,null,null,"Speed Roller"]
[null,null,null,null,null,null,null,null,null,null,null,null,null,null,null,null,null,null,null,null,null,null,null,null,null,null,null,null,null,"Sport Cobos"]
[null,null,null,null,null,null,null,null,null,null,null,null,null,null,null,null,null,null,null,null,null,null,null,null,null,null,null,null,null,"Sport House Sr"]
[null,null,null,null,null,null,null,null,null,null,null,null,null,null,null,null,null,null,null,null,null,null,null,null,null,null,null,null,null,"Sport Life Acacias"]
[null,null,null,null,null,null,null,null,null,null,null,null,null,null,null,null,null,null,null,null,null,null,null,null,null,null,null,null,null,"Sports Stars"]
[null,null,null,null,null,null,null,null,null,null,null,null,null,null,null,null,null,null,null,null,null,null,null,null,null,null,null,null,null,"Stars Bright"]
[null,null,null,null,null,null,null,null,null,null,null,null,null,null,null,null,null,null,null,null,null,null,null,null,null,null,null,null,null,"Stick Skate"]
[null,null,null,null,null,null,null,null,null,null,null,null,null,null,null,null,null,null,null,null,null,null,null,null,null,null,null,null,null,"Sucre Skate "]
[null,null,null,null,null,null,null,null,null,null,null,null,null,null,null,null,null,null,null,null,null,null,null,null,null,null,null,null,null,"Sueños Sobre Ruedas"]
[null,null,null,null,null,null,null,null,null,null,null,null,null,null,null,null,null,null,null,null,null,null,null,null,null,null,null,null,null,"Suricata"]
[null,null,null,null,null,null,null,null,null,null,null,null,null,null,null,null,null,null,null,null,null,null,null,null,null,null,null,null,null,"Tabio Elite"]
[null,null,null,null,null,null,null,null,null,null,null,null,null,null,null,null,null,null,null,null,null,null,null,null,null,null,null,null,null,"Talento En Línea"]
[null,null,null,null,null,null,null,null,null,null,null,null,null,null,null,null,null,null,null,null,null,null,null,null,null,null,null,null,null,"Talento Montemariano"]
[null,null,null,null,null,null,null,null,null,null,null,null,null,null,null,null,null,null,null,null,null,null,null,null,null,null,null,null,null,"Talentos Carmelitanos"]
[null,null,null,null,null,null,null,null,null,null,null,null,null,null,null,null,null,null,null,null,null,null,null,null,null,null,null,null,null,"Talentos De Antioquia"]
[null,null,null,null,null,null,null,null,null,null,null,null,null,null,null,null,null,null,null,null,null,null,null,null,null,null,null,null,null,"Talentos Del Valle"]
[null,null,null,null,null,null,null,null,null,null,null,null,null,null,null,null,null,null,null,null,null,null,null,null,null,null,null,null,null,"Talentos En Línea Sucre"]
[null,null,null,null,null,null,null,null,null,null,null,null,null,null,null,null,null,null,null,null,null,null,null,null,null,null,null,null,null,"Talentos In Line Skate "]
[null,null,null,null,null,null,null,null,null,null,null,null,null,null,null,null,null,null,null,null,null,null,null,null,null,null,null,null,null,"Talentos Tolima"]
[null,null,null,null,null,null,null,null,null,null,null,null,null,null,null,null,null,null,null,null,null,null,null,null,null,null,null,null,null,"Team Ecuador"]
[null,null,null,null,null,null,null,null,null,null,null,null,null,null,null,null,null,null,null,null,null,null,null,null,null,null,null,null,null,"Team Elite"]
[null,null,null,null,null,null,null,null,null,null,null,null,null,null,null,null,null,null,null,null,null,null,null,null,null,null,null,null,null,"Team Elite Ecuador"]
[null,null,null,null,null,null,null,null,null,null,null,null,null,null,null,null,null,null,null,null,null,null,null,null,null,null,null,null,null,"Team Fénix"]
[null,null,null,null,null,null,null,null,null,null,null,null,null,null,null,null,null,null,null,null,null,null,null,null,null,null,null,null,null,"Team México"]
[null,null,null,null,null,null,null,null,null,null,null,null,null,null,null,null,null,null,null,null,null,null,null,null,null,null,null,null,null,"Team Race Nereidas"]
[null,null,null,null,null,null,null,null,null,null,null,null,null,null,null,null,null,null,null,null,null,null,null,null,null,null,null,null,null,"Team Skate de Piedecuesta"]
[null,null,null,null,null,null,null,null,null,null,null,null,null,null,null,null,null,null,null,null,null,null,null,null,null,null,null,null,null,"Team Talento"]
[null,null,null,null,null,null,null,null,null,null,null,null,null,null,null,null,null,null,null,null,null,null,null,null,null,null,null,null,null,"Team Venezuela"]
[null,null,null,null,null,null,null,null,null,null,null,null,null,null,null,null,null,null,null,null,null,null,null,null,null,null,null,null,null,"Tequendama"]
[null,null,null,null,null,null,null,null,null,null,null,null,null,null,null,null,null,null,null,null,null,null,null,null,null,null,null,null,null,"Tequendama Ac"]
[null,null,null,null,null,null,null,null,null,null,null,null,null,null,null,null,null,null,null,null,null,null,null,null,null,null,null,null,null,"Tigres en Linea"]
[null,null,null,null,null,null,null,null,null,null,null,null,null,null,null,null,null,null,null,null,null,null,null,null,null,null,null,null,null,"Titanes del Caribe"]
[null,null,null,null,null,null,null,null,null,null,null,null,null,null,null,null,null,null,null,null,null,null,null,null,null,null,null,null,null,"Titanes del Patín Tolima"]
[null,null,null,null,null,null,null,null,null,null,null,null,null,null,null,null,null,null,null,null,null,null,null,null,null,null,null,null,null,"Titanes Del Valle"]
[null,null,null,null,null,null,null,null,null,null,null,null,null,null,null,null,null,null,null,null,null,null,null,null,null,null,null,null,null,"Titanes Elite "]
[null,null,null,null,null,null,null,null,null,null,null,null,null,null,null,null,null,null,null,null,null,null,null,null,null,null,null,null,null,"Titans Bogotá"]
[null,null,null,null,null,null,null,null,null,null,null,null,null,null,null,null,null,null,null,null,null,null,null,null,null,null,null,null,null,"Tocaskate"]
[null,null,null,null,null,null,null,null,null,null,null,null,null,null,null,null,null,null,null,null,null,null,null,null,null,null,null,null,null,"Torices Skate"]
[null,null,null,null,null,null,null,null,null,null,null,null,null,null,null,null,null,null,null,null,null,null,null,null,null,null,null,null,null,"Tornado Villamaría"]
[null,null,null,null,null,null,null,null,null,null,null,null,null,null,null,null,null,null,null,null,null,null,null,null,null,null,null,null,null,"Trueno"]
[null,null,null,null,null,null,null,null,null,null,null,null,null,null,null,null,null,null,null,null,null,null,null,null,null,null,null,null,null,"Tulua Sobre Ruedas"]
[null,null,null,null,null,null,null,null,null,null,null,null,null,null,null,null,null,null,null,null,null,null,null,null,null,null,null,null,null,"Ucundinamarca"]
[null,null,null,null,null,null,null,null,null,null,null,null,null,null,null,null,null,null,null,null,null,null,null,null,null,null,null,null,null,"Universal Skating"]
[null,null,null,null,null,null,null,null,null,null,null,null,null,null,null,null,null,null,null,null,null,null,null,null,null,null,null,null,null,"Urban Inline Skate"]
[null,null,null,null,null,null,null,null,null,null,null,null,null,null,null,null,null,null,null,null,null,null,null,null,null,null,null,null,null,"USD- Candelaria Valle"]
[null,null,null,null,null,null,null,null,null,null,null,null,null,null,null,null,null,null,null,null,null,null,null,null,null,null,null,null,null,"Valledupar Skating"]
[null,null,null,null,null,null,null,null,null,null,null,null,null,null,null,null,null,null,null,null,null,null,null,null,null,null,null,null,null,"Vencedores Patín Club"]
[null,null,null,null,null,null,null,null,null,null,null,null,null,null,null,null,null,null,null,null,null,null,null,null,null,null,null,null,null,"Venezuela"]
[null,null,null,null,null,null,null,null,null,null,null,null,null,null,null,null,null,null,null,null,null,null,null,null,null,null,null,null,null,"Venezuela Sport"]
[null,null,null,null,null,null,null,null,null,null,null,null,null,null,null,null,null,null,null,null,null,null,null,null,null,null,null,null,null,"Warrior Team"]
[null,null,null,null,null,null,null,null,null,null,null,null,null,null,null,null,null,null,null,null,null,null,null,null,null,null,null,null,null,"Warriors Skate "]
[null,null,null,null,null,null,null,null,null,null,null,null,null,null,null,null,null,null,null,null,null,null,null,null,null,null,null,null,null,"Wild Skate"]
[null,null,null,null,null,null,null,null,null,null,null,null,null,null,null,null,null,null,null,null,null,null,null,null,null,null,null,null,null,"Windsor racing"]
[null,null,null,null,null,null,null,null,null,null,null,null,null,null,null,null,null,null,null,null,null,null,null,null,null,null,null,null,null,"Wino Sport"]
[null,null,null,null,null,null,null,null,null,null,null,null,null,null,null,null,null,null,null,null,null,null,null,null,null,null,null,null,null,"Wolf Skates Atlantico"]
[null,null,null,null,null,null,null,null,null,null,null,null,null,null,null,null,null,null,null,null,null,null,null,null,null,null,null,null,null,"Wolf Skates Santander"]
[null,null,null,null,null,null,null,null,null,null,null,null,null,null,null,null,null,null,null,null,null,null,null,null,null,null,null,null,null,"Yld Tolima"]
[null,null,null,null,null,null,null,null,null,null,null,null,null,null,null,null,null,null,null,null,null,null,null,null,null,null,null,null,null,"Yopal Team Skate"]
[null,null,null,null,null,null,null,null,null,null,null,null,null,null,null,null,null,null,null,null,null,null,null,null,null,null,null,null,null,"Yumbo Skate"]
[null,null,null,null,null,null,null,null,null,null,null,null,null,null,null,null,null,null,null,null,null,null,null,null,null,null,null,null,null,"No Aparece mi club"]

{"sheet":"PLANILLA#2 (17-32)","index":1,"n_rows":42,"n_cols":28,"rows_kept":42,"cut":false,"hidden":false,"merged":[[1,1,3,9],[3,10,3,17],[1,10,1,17],[2,10,2,17],[3,18,3,20],[1,18,2,20],[5,19,5,20],[7,4,7,7],[7,10,7,11],[7,12,7,13],[7,14,7,16],[7,17,7,18],[7,19,7,20],[5,4,5,7],[5,10,5,11],[5,12,5,13],[5,14,5,16],[5,17,5,18],[9,17,9,18],[9,19,9,20],[8,4,8,7],[8,10,8,11],[8,12,8,13],[8,14,8,16],[8,17,8,18],[9,4,9,7],[9,10,9,11],[9,12,9,13],[9,14,9,16],[8,19,8,20],[10,14,10,15],[41,12,41,20],[41,1,41,11],[35,1,35,11],[35,12,35,20],[12,12,13,20],[12,1,14,1],[12,2,14,2],[12,4,13,6],[12,7,13,8],[12,10,14,10],[12,11,13,11],[10,16,10,17],[12,3,14,3],[9,26,9,27],[10,26,10,27],[12,9,14,9],[5,1,5,3],[7,1,7,3],[8,1,8,3],[9,1,9,3],[10,1,10,3],[7,8,7,9],[8,8,8,9],[9,8,9,9],[10,8,10,9],[5,8,5,9],[10,4,10,7],[10,10,10,11],[10,12,10,13]]}
[]
[null,null,null,null,null,null,null,null,null,null,"Federación Colombiana de Patinaje ",null,null,null,null,null,null,null,"TEMPORADA 2026 - 2027"]
[null,null,null,null,null,null,null,null,null,null,"PUI - Planilla Única de Inscripción"]
[null,null,null,null,null,null,null,null,null,null,"Categoría Transición"]
[]
[null,"NOMBRE DEL EVENTO",null,null,{"$f":"'PLANILLA#1 (1-16)'!E6:H6","v":"II TORNEO NACIONAL INTERCLUBES 2026, EN LA DISCIPLINA DE PATINAJE DE VELOCIDAD CATEGORIA TRANSICIÓN"},null,null,null,"CIUDAD SEDE DEL EVENTO",null,{"$f":"'PLANILLA#1 (1-16)'!K6:L6","v":"BOGOTÁ D.C"},null,"LIGA ",null,{"$f":"'PLANILLA#1 (1-16)'!O6:Q6","v":"BOGOTÁ"},null,null,"FECHA EVENTO",null,{"$f":"'PLANILLA#1 (1-16)'!T6:U6","v":"Del 2 al 4 de octubre de 2026"}]
[]
[null,{"$f":"'PLANILLA#1 (1-16)'!B8:C8","v":"NOMBRE CLUB"},null,null,{"$f":"IF('PLANILLA#1 (1-16)'!E8:H8=\"\",\"\",'PLANILLA#1 (1-16)'!E8:H8)","v":""},null,null,null,{"$f":"'PLANILLA#1 (1-16)'!I8","v":"LIGA A LA QUE PERTENECE"},null,{"$f":"IF('PLANILLA#1 (1-16)'!K8:L8=\"\",\"\",'PLANILLA#1 (1-16)'!K8:L8)","v":""},null,{"$f":"'PLANILLA#1 (1-16)'!M8:N8","v":"DIRECCIÓN"},null,{"$f":"IF('PLANILLA#1 (1-16)'!O8:Q8=\"\",\"\",'PLANILLA#1 (1-16)'!O8:Q8)","v":""},null,null,{"$f":"'PLANILLA#1 (1-16)'!R8:S8","v":"TELÉFONO CLUB"},null,{"$f":"IF('PLANILLA#1 (1-16)'!T8:U8=0,\"\",'PLANILLA#1 (1-16)'!T8:U8)","v":""},null,null,null,null,"TI"]
[null,{"$f":"'PLANILLA#1 (1-16)'!B9:C9","v":"NOMBRE COMPLETO DEL PRESIDENTE DEL CLUB"},null,null,{"$f":"IF('PLANILLA#1 (1-16)'!E9:H9=\"\",\"\",'PLANILLA#1 (1-16)'!E9:H9)","v":""},null,null,null,{"$f":"'PLANILLA#1 (1-16)'!I9","v":"C.C O NIT PRESIDENTE"},null,{"$f":"IF('PLANILLA#1 (1-16)'!K9:L9=\"\",\"\",'PLANILLA#1 (1-16)'!K9:L9)","v":""},null,{"$f":"'PLANILLA#1 (1-16)'!M9:N9","v":"DELEGADO CLUB"},null,{"$f":"IF('PLANILLA#1 (1-16)'!O9:Q9=\"\",\"\",'PLANILLA#1 (1-16)'!O9:Q9)","v":""},null,null,{"$f":"'PLANILLA#1 (1-16)'!R9:S9","v":"CELULAR DELEGADO"},null,{"$f":"IF('PLANILLA#1 (1-16)'!T9:U9=0,\"\",'PLANILLA#1 (1-16)'!T9:U9)","v":""},null,null,null,null,"CC"]
[null,{"$f":"'PLANILLA#1 (1-16)'!B10:C10","v":"CORREO ELECTRONICO DEL PRESIDENTE O CLUB"},null,null,{"$f":"IF('PLANILLA#1 (1-16)'!E10:H10=\"\",\"\",'PLANILLA#1 (1-16)'!E10:H10)","v":""},null,null,null,{"$f":"'PLANILLA#1 (1-16)'!I10","v":"TEL / CEL PRESIDENTE"},null,{"$f":"IF('PLANILLA#1 (1-16)'!K10:L10=\"\",\"\",'PLANILLA#1 (1-16)'!K10:L10)","v":""},null,{"$f":"'PLANILLA#1 (1-16)'!M10:N10","v":"TÉCNICO"},null,{"$f":"IF('PLANILLA#1 (1-16)'!O10:Q10=\"\",\"\",'PLANILLA#1 (1-16)'!O10:Q10)","v":""},null,null,{"$f":"'PLANILLA#1 (1-16)'!R10:S10","v":"ASISTENTE"},null,{"$f":"IF('PLANILLA#1 (1-16)'!T10:U10=0,\"\",'PLANILLA#1 (1-16)'!T10:U10)","v":""},null,null,null,null,"PAS",null,"SI ESTA VIENDO ESTO"]
[null,"TOTAL DEPORTISTAS INSCRIPCIÓN ORDINARIA",null,null,{"$f":"'PLANILLA#1 (1-16)'!E11:H11","v":""},null,null,null,"TOTAL DEPORTISTAS INSCRIPCIÓN \nEXTRAORDINARIA",null,{"$f":"'PLANILLA#1 (1-16)'!K11:L11","v":""},null,"VALOR INSCRIPCIÓN ORDINARIA CLUB",null,{"$f":"'PLANILLA#1 (1-16)'!O11:P11","v":1},null,"VALOR INSCRIPCIÓN EXTRAORDINARIA CLUB",null,{"$f":"'PLANILLA#1 (1-16)'!S11","v":0},"VALOR TOTAL A TRANSFERIR",{"$f":"'PLANILLA#1 (1-16)'!U11","v":350000},null,null,null,null,null,"SU PLANILLA NO SERA VALIDA"]
[]
[null,"NO.","NOMBRES COMPLETOS                     (COMO APARECEN EN EL DOCUMENTO DE IDENTIDAD)","APELLIDOS COMPLETOS                     (COMO APARECEN EN EL DOCUMENTO DE IDENTIDAD)","FECHA NACIMIENTO",null,null,"DOCUMENTO IDENTIDAD",null,"OBLIGATORIO CÓDIGO ÚNICO VELOPRO","CATEGORÍA","RAMA","PRUEBAS",null,null,null,null,null,null,null,null,null,"EDAD AL"]
[]
[null,null,null,null,"DIA","MES","AÑO","TIPO","NÚMERO",null,null,"D / V",{"$f":"'PLANILLA#1 (1-16)'!M15","v":"Remates 200m + D"},{"$f":"'PLANILLA#1 (1-16)'!N15","v":"Eliminación"},{"$f":"'PLANILLA#1 (1-16)'!O15","v":"Carriles"},{"$f":"'PLANILLA#1 (1-16)'!P15","v":"Puntos"},{"$f":"'PLANILLA#1 (1-16)'!Q15","v":"Relevos"},"X","X","X","X",null,"2026-07-01"]
[null,17,null,null,null,null,null,null,null,null,{"$f":"IF(W16=\"\",\"\",IF(OR(W16=11),\"PREINFANTIL\",IF(OR(W16=12),\"INFANTIL\",IF(W16=13,\"JUNIOR\",\"ERROR FEC NAC\"))))","v":""},null,null,null,null,null,null,null,null,null,null,null,{"$f":"IF(Z16=\"//\",\"\",DATEDIF(Z16,$W$15,\"y\"))","v":""},null,null,{"$f":"TEXT((CONCATENATE(E16,\"/\",F16,\"/\",G16)),\"dd/mmmm/yyyy\")","v":"//"},{"$f":"TRIM(PROPER(C16))","v":""},{"$f":"TRIM(PROPER(D16))","v":""}]
[null,18,null,null,null,null,null,null,null,null,"",null,null,null,null,null,null,null,null,null,null,null,{"$f":"IF(Z17=\"//\",\"\",DATEDIF(Z17,$W$15,\"y\"))","v":""},null,null,{"$f":"TEXT((CONCATENATE(E17,\"/\",F17,\"/\",G17)),\"dd/mmmm/yyyy\")","v":"//"},{"$f":"TRIM(PROPER(C17))","v":""},{"$f":"TRIM(PROPER(D17))","v":""}]
[null,19,null,null,null,null,null,null,null,null,"",null,null,null,null,null,null,null,null,null,null,null,"",null,null,{"$f":"TEXT((CONCATENATE(E18,\"/\",F18,\"/\",G18)),\"dd/mmmm/yyyy\")","v":"//"},"",""]
[null,20,null,null,null,null,null,null,null,null,"",null,null,null,null,null,null,null,null,null,null,null,"",null,null,"//","",""]
[null,21,null,null,null,null,null,null,null,null,"",null,null,null,null,null,null,null,null,null,null,null,"",null,null,"//","",""]
[null,22,null,null,null,null,null,null,null,null,"",null,null,null,null,null,null,null,null,null,null,null,"",null,null,"//","",""]
[null,23,null,null,null,null,null,null,null,null,"",null,null,null,null,null,null,null,null,null,null,null,"",null,null,"//","",""]
[null,24,null,null,null,null,null,null,null,null,"",null,null,null,null,null,null,null,null,null,null,null,"",null,null,"//","",""]
[null,25,null,null,null,null,null,null,null,null,"",null,null,null,null,null,null,null,null,null,null,null,"",null,null,"//","",""]
[null,26,null,null,null,null,null,null,null,null,"",null,null,null,null,null,null,null,null,null,null,null,"",null,null,"//","",""]
[null,27,null,null,null,null,null,null,null,null,"",null,null,null,null,null,null,null,null,null,null,null,"",null,null,"//","",""]
[null,28,null,null,null,null,null,null,null,null,"",null,null,null,null,null,null,null,null,null,null,null,"",null,null,"//","",""]
[null,29,null,null,null,null,null,null,null,null,"",null,null,null,null,null,null,null,null,null,null,null,"",null,null,"//","",""]
[null,30,null,null,null,null,null,null,null,null,"",null,null,null,null,null,null,null,null,null,null,null,"",null,null,"//","",""]
[null,31,null,null,null,null,null,null,null,null,"",null,null,null,null,null,null,null,null,null,null,null,"",null,null,"//","",""]
[null,32,null,null,null,null,null,null,null,null,"",null,null,null,null,null,null,null,null,null,null,null,"",null,null,"//","",""]
[]
[]
[]
[]
[null,"FIRMA DELEGADO DEL CLUB",null,null,null,null,null,null,null,null,null,null,"FIRMA COMISIÓN NACIONAL"]
[]
[]
[]
[]
[]
[null,"VOBO. FEDERACIÓN COLOMBIANA DE PATINAJE",null,null,null,null,null,null,null,null,null,null,"FIRMA APROBACIÓN DE LA LIGA"]

{"sheet":"PLANILLA#4 (49-64)","index":2,"n_rows":41,"n_cols":19,"rows_kept":41,"cut":false,"hidden":true,"merged":[[12,13,12,16],[8,1,8,2],[9,1,9,2],[9,3,9,4],[9,6,9,7],[10,1,10,2],[10,3,10,4],[10,6,10,7],[12,1,13,1],[12,2,13,2],[12,4,12,5],[12,6,13,6],[12,8,12,12],[9,15,9,16],[10,10,10,12],[10,13,10,14],[10,15,10,16],[5,10,5,12],[5,13,5,14],[7,10,7,12],[7,13,7,14],[7,15,7,16],[8,13,8,14],[8,15,8,16],[8,3,8,4],[8,6,8,7],[8,10,8,12],[9,10,9,12],[9,13,9,14],[5,1,5,2],[5,15,5,16],[5,3,5,4],[5,6,5,7],[7,1,7,2],[7,3,7,4],[7,6,7,7],[1,1,3,5],[1,6,1,13],[1,14,1,16],[2,6,2,13],[2,14,2,16],[3,6,3,13]]}
[]
[null,null,null,null,null,null,{"$f":"'PLANILLA#1 (1-16)'!K2:W2","v":{"$error":"#VALUE!"}},null,null,null,null,null,null,null,{"$f":"'PLANILLA#1 (1-16)'!S2:U2","v":{"$error":"#VALUE!"}}]
[null,null,null,null,null,null,{"$f":"'PLANILLA#1 (1-16)'!K3:W3","v":{"$error":"#VALUE!"}},null,null,null,null,null,null,null,{"$f":"'PLANILLA#1 (1-16)'!$S$2","v":"TEMPORADA 2026 - 2027"}]
[null,null,null,null,null,null,{"$f":"'PLANILLA#1 (1-16)'!K4:R4","v":{"$error":"#VALUE!"}}]
[]
[null,"NOMBRE DEL EVENTO",null,{"$f":"'PLANILLA#1 (1-16)'!E6:H6","v":{"$error":"#VALUE!"}},null,"SEDE EVENTO",{"$f":"'PLANILLA#1 (1-16)'!K6:L6","v":{"$error":"#VALUE!"}},null,{"$f":"'PLANILLA#1 (1-16)'!M6","v":"LIGA "},null,{"$f":"'PLANILLA#1 (1-16)'!O6:Q6","v":{"$error":"#VALUE!"}},null,null,"FECHA EVENTO",null,{"$f":"'PLANILLA#1 (1-16)'!T6:U6","v":{"$error":"#VALUE!"}}]
[]
[null,"NOMBRE CLUB/LIGA/NACION",null,{"$f":"'PLANILLA#1 (1-16)'!G8:H8","v":{"$error":"#VALUE!"}},null,"LIGA PERTENECE",{"$f":"'PLANILLA#1 (1-16)'!K8:L8","v":{"$error":"#VALUE!"}},null,"DIRECCIÓN",null,{"$f":"'PLANILLA#1 (1-16)'!O8:Q8","v":{"$error":"#VALUE!"}},null,null,"TELÉFONO",null,{"$f":"'PLANILLA#1 (1-16)'!T8:U8","v":{"$error":"#VALUE!"}}]
[null,"NOMBRE PRESIDENTE",null,{"$f":"'PLANILLA#1 (1-16)'!G9:H9","v":{"$error":"#VALUE!"}},null,"CEDULA PRESIDENTE",{"$f":"'PLANILLA#1 (1-16)'!K9:L9","v":{"$error":"#VALUE!"}},null,"DELEGADO",null,{"$f":"'PLANILLA#1 (1-16)'!O9:Q9","v":{"$error":"#VALUE!"}},null,null,"CEDULA",null,{"$f":"'PLANILLA#1 (1-16)'!T9:U9","v":{"$error":"#VALUE!"}}]
[null,"MEDICO",null,{"$f":"'PLANILLA#1 (1-16)'!G10:H10","v":{"$error":"#VALUE!"}},null,"TEL / CEL",{"$f":"'PLANILLA#1 (1-16)'!K10:L10","v":{"$error":"#VALUE!"}},null,"TECNICO",null,{"$f":"'PLANILLA#1 (1-16)'!O10:Q10","v":{"$error":"#VALUE!"}},null,null,"ASISTENTE",null,{"$f":"'PLANILLA#1 (1-16)'!T10:U10","v":{"$error":"#VALUE!"}}]
[null,"FISIOTERAPEUTA",null,{"$f":"'PLANILLA#1 (1-16)'!E11:H11","v":{"$error":"#VALUE!"}},null,"TEL / CEL",{"$f":"'PLANILLA#1 (1-16)'!K11:L11","v":{"$error":"#VALUE!"}},null,"KINESIOLOGO",null,{"$f":"'PLANILLA#1 (1-16)'!O11:Q11","v":{"$error":"#VALUE!"}},null,null,"TEL / CEL",null,{"$f":"'PLANILLA#1 (1-16)'!T11:U11","v":{"$error":"#VALUE!"}}]
[]
[null,"NRO","NOMBRES Y APELLIDOS","FECHA NAC.","DOCUMENTO IDENTIDAD",null,"CATEGORIA","RAMA",{"$f":"'PLANILLA#1 (1-16)'!M13:P13","v":{"$error":"#VALUE!"}},null,null,null,null,{"$f":"'PLANILLA#1 (1-16)'!R13:U13","v":{"$error":"#VALUE!"}},null,null,null,null,"EDAD AL"]
[null,null,null,"DD/MM/AA","TIPO","NÚMERO",null,"D / V",{"$f":"'PLANILLA#1 (1-16)'!M15","v":"Remates 200m + D"},{"$f":"'PLANILLA#1 (1-16)'!N15","v":"Eliminación"},{"$f":"'PLANILLA#1 (1-16)'!O15","v":"Carriles"},{"$f":"'PLANILLA#1 (1-16)'!P15","v":"Puntos"},{"$f":"'PLANILLA#1 (1-16)'!Q15","v":"Relevos"},{"$f":"'PLANILLA#1 (1-16)'!R15","v":"X"},{"$f":"'PLANILLA#1 (1-16)'!S15","v":"X"},{"$f":"'PLANILLA#1 (1-16)'!T15","v":"X"},{"$f":"'PLANILLA#1 (1-16)'!U15","v":"X"},null,"2020-07-01"]
[null,49,null,null,null,null,{"$f":"IF(S15=\"\",\"\",IF(OR(S15=11),\"PREINFANTIL\",IF(OR(S15=12),\"INFANTIL\",IF(S15=13,\"JUNIOR\",\"Check FN\"))))","v":""},null,null,null,null,null,null,null,null,null,null,null,{"$f":"IF(D15=\"\",\"\",DATEDIF(D15,$S$14,\"y\"))","v":""}]
[null,50,null,null,null,null,"",null,null,null,null,null,null,null,null,null,null,null,""]
[null,51,null,null,null,null,"",null,null,null,null,null,null,null,null,null,null,null,""]
[null,52,null,null,null,null,"",null,null,null,null,null,null,null,null,null,null,null,""]
[null,53,null,null,null,null,"",null,null,null,null,null,null,null,null,null,null,null,""]
[null,54,null,null,null,null,"",null,null,null,null,null,null,null,null,null,null,null,""]
[null,55,null,null,null,null,"",null,null,null,null,null,null,null,null,null,null,null,""]
[null,56,null,null,null,null,"",null,null,null,null,null,null,null,null,null,null,null,""]
[null,57,null,null,null,null,"",null,null,null,null,null,null,null,null,null,null,null,""]
[null,58,null,null,null,null,"",null,null,null,null,null,null,null,null,null,null,null,""]
[null,59,null,null,null,null,"",null,null,null,null,null,null,null,null,null,null,null,""]
[null,60,null,null,null,null,"",null,null,null,null,null,null,null,null,null,null,null,""]
[null,61,null,null,null,null,"",null,null,null,null,null,null,null,null,null,null,null,""]
[null,62,null,null,null,null,"",null,null,null,null,null,null,null,null,null,null,null,""]
[null,63,null,null,null,null,"",null,null,null,null,null,null,null,null,null,null,null,""]
[null,64,null,null,null,null,"",null,null,null,null,null,null,null,null,null,null,null,""]
[]
[]
[]
[]
[null,null,null,"FIRMA DELEGADO DEL CLUB",null,null,null,null,null,null,null,"FIRMA APROBACION DE LA LIGA"]
[]
[]
[]
[]
[]
[null,null,null,"VOBO.  COMISIÓN NACIONAL",null,null,null,null,null,null,"VOBO. FEDERACIÓN COLOMBIANA DE PATINAJE"]

{"sheet":"BDATOS","index":3,"n_rows":33,"n_cols":18,"rows_kept":33,"cut":false,"hidden":false,"merged":[]}
["NRO","NOMBRES COMPLETOS","APELLIDOS COMPLETOS","FECHA DE NACIMIENTO","TIPO","NUMERO","CATEGORIA","RAMA",{"$f":"'PLANILLA#1 (1-16)'!M15","v":"Remates 200m + D"},{"$f":"'PLANILLA#1 (1-16)'!N15","v":"Eliminación"},{"$f":"'PLANILLA#1 (1-16)'!O15","v":"Carriles"},{"$f":"'PLANILLA#1 (1-16)'!P15","v":"Puntos"},{"$f":"'PLANILLA#1 (1-16)'!Q15","v":"Relevos"},"CLUB","LIGA "," DELEGADO","ENTRENADOR ","CÓDIGO ÚNICO VELOPRO"]
[{"$f":"'PLANILLA#1 (1-16)'!B16","v":1},{"$f":"IF('PLANILLA#1 (1-16)'!C16=\"\",\"\",'PLANILLA#1 (1-16)'!AB16)","v":""},{"$f":"IF('PLANILLA#1 (1-16)'!D16=\"\",\"\",'PLANILLA#1 (1-16)'!AC16)","v":""},{"$f":"IF('PLANILLA#1 (1-16)'!Z16=\"//\",\"\",'PLANILLA#1 (1-16)'!Z16)","v":""},{"$f":"IF('PLANILLA#1 (1-16)'!H16=\"\",\"\",'PLANILLA#1 (1-16)'!H16)","v":""},{"$f":"IF('PLANILLA#1 (1-16)'!I16=\"\",\"\",'PLANILLA#1 (1-16)'!I16)","v":""},{"$f":"IF('PLANILLA#1 (1-16)'!K16=\"\",\"\",'PLANILLA#1 (1-16)'!K16)","v":""},{"$f":"IF('PLANILLA#1 (1-16)'!L16=\"\",\"\",'PLANILLA#1 (1-16)'!L16)","v":""},{"$f":"IF('PLANILLA#1 (1-16)'!M16=\"\",\"\",'PLANILLA#1 (1-16)'!M16)","v":""},{"$f":"IF('PLANILLA#1 (1-16)'!N16=\"\",\"\",'PLANILLA#1 (1-16)'!N16)","v":""},{"$f":"IF('PLANILLA#1 (1-16)'!O16=\"\",\"\",'PLANILLA#1 (1-16)'!O16)","v":""},{"$f":"IF('PLANILLA#1 (1-16)'!P16=\"\",\"\",'PLANILLA#1 (1-16)'!P16)","v":""},{"$f":"IF('PLANILLA#1 (1-16)'!Q16=\"\",\"\",'PLANILLA#1 (1-16)'!Q16)","v":""},{"$f":"'PLANILLA#1 (1-16)'!AA8","v":""},{"$f":"'PLANILLA#1 (1-16)'!AA9","v":""},{"$f":"'PLANILLA#1 (1-16)'!AA14","v":""},{"$f":"'PLANILLA#1 (1-16)'!AA15","v":""},{"$f":"IF('PLANILLA#1 (1-16)'!J16=\"\",\"\",'PLANILLA#1 (1-16)'!J16)","v":""}]
[{"$f":"'PLANILLA#1 (1-16)'!B17","v":2},{"$f":"IF('PLANILLA#1 (1-16)'!C17=\"\",\"\",'PLANILLA#1 (1-16)'!AB17)","v":""},{"$f":"IF('PLANILLA#1 (1-16)'!D17=\"\",\"\",'PLANILLA#1 (1-16)'!AC17)","v":""},{"$f":"IF('PLANILLA#1 (1-16)'!Z17=\"//\",\"\",'PLANILLA#1 (1-16)'!Z17)","v":""},{"$f":"IF('PLANILLA#1 (1-16)'!H17=\"\",\"\",'PLANILLA#1 (1-16)'!H17)","v":""},{"$f":"IF('PLANILLA#1 (1-16)'!I17=\"\",\"\",'PLANILLA#1 (1-16)'!I17)","v":""},{"$f":"IF('PLANILLA#1 (1-16)'!K17=\"\",\"\",'PLANILLA#1 (1-16)'!K17)","v":""},{"$f":"IF('PLANILLA#1 (1-16)'!L17=\"\",\"\",'PLANILLA#1 (1-16)'!L17)","v":""},{"$f":"IF('PLANILLA#1 (1-16)'!M17=\"\",\"\",'PLANILLA#1 (1-16)'!M17)","v":""},{"$f":"IF('PLANILLA#1 (1-16)'!N17=\"\",\"\",'PLANILLA#1 (1-16)'!N17)","v":""},{"$f":"IF('PLANILLA#1 (1-16)'!O17=\"\",\"\",'PLANILLA#1 (1-16)'!O17)","v":""},{"$f":"IF('PLANILLA#1 (1-16)'!P17=\"\",\"\",'PLANILLA#1 (1-16)'!P17)","v":""},{"$f":"IF('PLANILLA#1 (1-16)'!Q17=\"\",\"\",'PLANILLA#1 (1-16)'!Q17)","v":""},{"$f":"N2","v":""},"","","",{"$f":"IF('PLANILLA#1 (1-16)'!J17=\"\",\"\",'PLANILLA#1 (1-16)'!J17)","v":""}]
[{"$f":"'PLANILLA#1 (1-16)'!B18","v":3},{"$f":"IF('PLANILLA#1 (1-16)'!C18=\"\",\"\",'PLANILLA#1 (1-16)'!AB18)","v":""},{"$f":"IF('PLANILLA#1 (1-16)'!D18=\"\",\"\",'PLANILLA#1 (1-16)'!AC18)","v":""},{"$f":"IF('PLANILLA#1 (1-16)'!Z18=\"//\",\"\",'PLANILLA#1 (1-16)'!Z18)","v":""},{"$f":"IF('PLANILLA#1 (1-16)'!H18=\"\",\"\",'PLANILLA#1 (1-16)'!H18)","v":""},{"$f":"IF('PLANILLA#1 (1-16)'!I18=\"\",\"\",'PLANILLA#1 (1-16)'!I18)","v":""},{"$f":"IF('PLANILLA#1 (1-16)'!K18=\"\",\"\",'PLANILLA#1 (1-16)'!K18)","v":""},{"$f":"IF('PLANILLA#1 (1-16)'!L18=\"\",\"\",'PLANILLA#1 (1-16)'!L18)","v":""},{"$f":"IF('PLANILLA#1 (1-16)'!M18=\"\",\"\",'PLANILLA#1 (1-16)'!M18)","v":""},{"$f":"IF('PLANILLA#1 (1-16)'!N18=\"\",\"\",'PLANILLA#1 (1-16)'!N18)","v":""},{"$f":"IF('PLANILLA#1 (1-16)'!O18=\"\",\"\",'PLANILLA#1 (1-16)'!O18)","v":""},{"$f":"IF('PLANILLA#1 (1-16)'!P18=\"\",\"\",'PLANILLA#1 (1-16)'!P18)","v":""},{"$f":"IF('PLANILLA#1 (1-16)'!Q18=\"\",\"\",'PLANILLA#1 (1-16)'!Q18)","v":""},{"$f":"N3","v":""},"","","",{"$f":"IF('PLANILLA#1 (1-16)'!J18=\"\",\"\",'PLANILLA#1 (1-16)'!J18)","v":""}]
[{"$f":"'PLANILLA#1 (1-16)'!B19","v":4},{"$f":"IF('PLANILLA#1 (1-16)'!C19=\"\",\"\",'PLANILLA#1 (1-16)'!AB19)","v":""},{"$f":"IF('PLANILLA#1 (1-16)'!D19=\"\",\"\",'PLANILLA#1 (1-16)'!AC19)","v":""},{"$f":"IF('PLANILLA#1 (1-16)'!Z19=\"//\",\"\",'PLANILLA#1 (1-16)'!Z19)","v":""},{"$f":"IF('PLANILLA#1 (1-16)'!H19=\"\",\"\",'PLANILLA#1 (1-16)'!H19)","v":""},{"$f":"IF('PLANILLA#1 (1-16)'!I19=\"\",\"\",'PLANILLA#1 (1-16)'!I19)","v":""},{"$f":"IF('PLANILLA#1 (1-16)'!K19=\"\",\"\",'PLANILLA#1 (1-16)'!K19)","v":""},{"$f":"IF('PLANILLA#1 (1-16)'!L19=\"\",\"\",'PLANILLA#1 (1-16)'!L19)","v":""},{"$f":"IF('PLANILLA#1 (1-16)'!M19=\"\",\"\",'PLANILLA#1 (1-16)'!M19)","v":""},{"$f":"IF('PLANILLA#1 (1-16)'!N19=\"\",\"\",'PLANILLA#1 (1-16)'!N19)","v":""},{"$f":"IF('PLANILLA#1 (1-16)'!O19=\"\",\"\",'PLANILLA#1 (1-16)'!O19)","v":""},{"$f":"IF('PLANILLA#1 (1-16)'!P19=\"\",\"\",'PLANILLA#1 (1-16)'!P19)","v":""},{"$f":"IF('PLANILLA#1 (1-16)'!Q19=\"\",\"\",'PLANILLA#1 (1-16)'!Q19)","v":""},{"$f":"N4","v":""},"","","",{"$f":"IF('PLANILLA#1 (1-16)'!J19=\"\",\"\",'PLANILLA#1 (1-16)'!J19)","v":""}]
[{"$f":"'PLANILLA#1 (1-16)'!B20","v":5},{"$f":"IF('PLANILLA#1 (1-16)'!C20=\"\",\"\",'PLANILLA#1 (1-16)'!AB20)","v":""},{"$f":"IF('PLANILLA#1 (1-16)'!D20=\"\",\"\",'PLANILLA#1 (1-16)'!AC20)","v":""},{"$f":"IF('PLANILLA#1 (1-16)'!Z20=\"//\",\"\",'PLANILLA#1 (1-16)'!Z20)","v":""},{"$f":"IF('PLANILLA#1 (1-16)'!H20=\"\",\"\",'PLANILLA#1 (1-16)'!H20)","v":""},{"$f":"IF('PLANILLA#1 (1-16)'!I20=\"\",\"\",'PLANILLA#1 (1-16)'!I20)","v":""},{"$f":"IF('PLANILLA#1 (1-16)'!K20=\"\",\"\",'PLANILLA#1 (1-16)'!K20)","v":""},{"$f":"IF('PLANILLA#1 (1-16)'!L20=\"\",\"\",'PLANILLA#1 (1-16)'!L20)","v":""},{"$f":"IF('PLANILLA#1 (1-16)'!M20=\"\",\"\",'PLANILLA#1 (1-16)'!M20)","v":""},{"$f":"IF('PLANILLA#1 (1-16)'!N20=\"\",\"\",'PLANILLA#1 (1-16)'!N20)","v":""},{"$f":"IF('PLANILLA#1 (1-16)'!O20=\"\",\"\",'PLANILLA#1 (1-16)'!O20)","v":""},{"$f":"IF('PLANILLA#1 (1-16)'!P20=\"\",\"\",'PLANILLA#1 (1-16)'!P20)","v":""},{"$f":"IF('PLANILLA#1 (1-16)'!Q20=\"\",\"\",'PLANILLA#1 (1-16)'!Q20)","v":""},{"$f":"N5","v":""},"","","",{"$f":"IF('PLANILLA#1 (1-16)'!J20=\"\",\"\",'PLANILLA#1 (1-16)'!J20)","v":""}]
[{"$f":"'PLANILLA#1 (1-16)'!B21","v":6},{"$f":"IF('PLANILLA#1 (1-16)'!C21=\"\",\"\",'PLANILLA#1 (1-16)'!AB21)","v":""},{"$f":"IF('PLANILLA#1 (1-16)'!D21=\"\",\"\",'PLANILLA#1 (1-16)'!AC21)","v":""},{"$f":"IF('PLANILLA#1 (1-16)'!Z21=\"//\",\"\",'PLANILLA#1 (1-16)'!Z21)","v":""},{"$f":"IF('PLANILLA#1 (1-16)'!H21=\"\",\"\",'PLANILLA#1 (1-16)'!H21)","v":""},{"$f":"IF('PLANILLA#1 (1-16)'!I21=\"\",\"\",'PLANILLA#1 (1-16)'!I21)","v":""},{"$f":"IF('PLANILLA#1 (1-16)'!K21=\"\",\"\",'PLANILLA#1 (1-16)'!K21)","v":""},{"$f":"IF('PLANILLA#1 (1-16)'!L21=\"\",\"\",'PLANILLA#1 (1-16)'!L21)","v":""},{"$f":"IF('PLANILLA#1 (1-16)'!M21=\"\",\"\",'PLANILLA#1 (1-16)'!M21)","v":""},{"$f":"IF('PLANILLA#1 (1-16)'!N21=\"\",\"\",'PLANILLA#1 (1-16)'!N21)","v":""},{"$f":"IF('PLANILLA#1 (1-16)'!O21=\"\",\"\",'PLANILLA#1 (1-16)'!O21)","v":""},{"$f":"IF('PLANILLA#1 (1-16)'!P21=\"\",\"\",'PLANILLA#1 (1-16)'!P21)","v":""},{"$f":"IF('PLANILLA#1 (1-16)'!Q21=\"\",\"\",'PLANILLA#1 (1-16)'!Q21)","v":""},{"$f":"N6","v":""},"","","",{"$f":"IF('PLANILLA#1 (1-16)'!J21=\"\",\"\",'PLANILLA#1 (1-16)'!J21)","v":""}]
[{"$f":"'PLANILLA#1 (1-16)'!B22","v":7},{"$f":"IF('PLANILLA#1 (1-16)'!C22=\"\",\"\",'PLANILLA#1 (1-16)'!AB22)","v":""},{"$f":"IF('PLANILLA#1 (1-16)'!D22=\"\",\"\",'PLANILLA#1 (1-16)'!AC22)","v":""},{"$f":"IF('PLANILLA#1 (1-16)'!Z22=\"//\",\"\",'PLANILLA#1 (1-16)'!Z22)","v":""},{"$f":"IF('PLANILLA#1 (1-16)'!H22=\"\",\"\",'PLANILLA#1 (1-16)'!H22)","v":""},{"$f":"IF('PLANILLA#1 (1-16)'!I22=\"\",\"\",'PLANILLA#1 (1-16)'!I22)","v":""},{"$f":"IF('PLANILLA#1 (1-16)'!K22=\"\",\"\",'PLANILLA#1 (1-16)'!K22)","v":""},{"$f":"IF('PLANILLA#1 (1-16)'!L22=\"\",\"\",'PLANILLA#1 (1-16)'!L22)","v":""},{"$f":"IF('PLANILLA#1 (1-16)'!M22=\"\",\"\",'PLANILLA#1 (1-16)'!M22)","v":""},{"$f":"IF('PLANILLA#1 (1-16)'!N22=\"\",\"\",'PLANILLA#1 (1-16)'!N22)","v":""},{"$f":"IF('PLANILLA#1 (1-16)'!O22=\"\",\"\",'PLANILLA#1 (1-16)'!O22)","v":""},{"$f":"IF('PLANILLA#1 (1-16)'!P22=\"\",\"\",'PLANILLA#1 (1-16)'!P22)","v":""},{"$f":"IF('PLANILLA#1 (1-16)'!Q22=\"\",\"\",'PLANILLA#1 (1-16)'!Q22)","v":""},{"$f":"N7","v":""},"","","",{"$f":"IF('PLANILLA#1 (1-16)'!J22=\"\",\"\",'PLANILLA#1 (1-16)'!J22)","v":""}]
[{"$f":"'PLANILLA#1 (1-16)'!B23","v":8},{"$f":"IF('PLANILLA#1 (1-16)'!C23=\"\",\"\",'PLANILLA#1 (1-16)'!AB23)","v":""},{"$f":"IF('PLANILLA#1 (1-16)'!D23=\"\",\"\",'PLANILLA#1 (1-16)'!AC23)","v":""},{"$f":"IF('PLANILLA#1 (1-16)'!Z23=\"//\",\"\",'PLANILLA#1 (1-16)'!Z23)","v":""},{"$f":"IF('PLANILLA#1 (1-16)'!H23=\"\",\"\",'PLANILLA#1 (1-16)'!H23)","v":""},{"$f":"IF('PLANILLA#1 (1-16)'!I23=\"\",\"\",'PLANILLA#1 (1-16)'!I23)","v":""},{"$f":"IF('PLANILLA#1 (1-16)'!K23=\"\",\"\",'PLANILLA#1 (1-16)'!K23)","v":""},{"$f":"IF('PLANILLA#1 (1-16)'!L23=\"\",\"\",'PLANILLA#1 (1-16)'!L23)","v":""},{"$f":"IF('PLANILLA#1 (1-16)'!M23=\"\",\"\",'PLANILLA#1 (1-16)'!M23)","v":""},{"$f":"IF('PLANILLA#1 (1-16)'!N23=\"\",\"\",'PLANILLA#1 (1-16)'!N23)","v":""},{"$f":"IF('PLANILLA#1 (1-16)'!O23=\"\",\"\",'PLANILLA#1 (1-16)'!O23)","v":""},{"$f":"IF('PLANILLA#1 (1-16)'!P23=\"\",\"\",'PLANILLA#1 (1-16)'!P23)","v":""},{"$f":"IF('PLANILLA#1 (1-16)'!Q23=\"\",\"\",'PLANILLA#1 (1-16)'!Q23)","v":""},{"$f":"N8","v":""},"","","",{"$f":"IF('PLANILLA#1 (1-16)'!J23=\"\",\"\",'PLANILLA#1 (1-16)'!J23)","v":""}]
[{"$f":"'PLANILLA#1 (1-16)'!B24","v":9},{"$f":"IF('PLANILLA#1 (1-16)'!C24=\"\",\"\",'PLANILLA#1 (1-16)'!AB24)","v":""},{"$f":"IF('PLANILLA#1 (1-16)'!D24=\"\",\"\",'PLANILLA#1 (1-16)'!AC24)","v":""},{"$f":"IF('PLANILLA#1 (1-16)'!Z24=\"//\",\"\",'PLANILLA#1 (1-16)'!Z24)","v":""},{"$f":"IF('PLANILLA#1 (1-16)'!H24=\"\",\"\",'PLANILLA#1 (1-16)'!H24)","v":""},{"$f":"IF('PLANILLA#1 (1-16)'!I24=\"\",\"\",'PLANILLA#1 (1-16)'!I24)","v":""},{"$f":"IF('PLANILLA#1 (1-16)'!K24=\"\",\"\",'PLANILLA#1 (1-16)'!K24)","v":""},{"$f":"IF('PLANILLA#1 (1-16)'!L24=\"\",\"\",'PLANILLA#1 (1-16)'!L24)","v":""},{"$f":"IF('PLANILLA#1 (1-16)'!M24=\"\",\"\",'PLANILLA#1 (1-16)'!M24)","v":""},{"$f":"IF('PLANILLA#1 (1-16)'!N24=\"\",\"\",'PLANILLA#1 (1-16)'!N24)","v":""},{"$f":"IF('PLANILLA#1 (1-16)'!O24=\"\",\"\",'PLANILLA#1 (1-16)'!O24)","v":""},{"$f":"IF('PLANILLA#1 (1-16)'!P24=\"\",\"\",'PLANILLA#1 (1-16)'!P24)","v":""},{"$f":"IF('PLANILLA#1 (1-16)'!Q24=\"\",\"\",'PLANILLA#1 (1-16)'!Q24)","v":""},{"$f":"N9","v":""},"","","",{"$f":"IF('PLANILLA#1 (1-16)'!J24=\"\",\"\",'PLANILLA#1 (1-16)'!J24)","v":""}]
[{"$f":"'PLANILLA#1 (1-16)'!B25","v":10},{"$f":"IF('PLANILLA#1 (1-16)'!C25=\"\",\"\",'PLANILLA#1 (1-16)'!AB25)","v":""},{"$f":"IF('PLANILLA#1 (1-16)'!D25=\"\",\"\",'PLANILLA#1 (1-16)'!AC25)","v":""},{"$f":"IF('PLANILLA#1 (1-16)'!Z25=\"//\",\"\",'PLANILLA#1 (1-16)'!Z25)","v":""},{"$f":"IF('PLANILLA#1 (1-16)'!H25=\"\",\"\",'PLANILLA#1 (1-16)'!H25)","v":""},{"$f":"IF('PLANILLA#1 (1-16)'!I25=\"\",\"\",'PLANILLA#1 (1-16)'!I25)","v":""},{"$f":"IF('PLANILLA#1 (1-16)'!K25=\"\",\"\",'PLANILLA#1 (1-16)'!K25)","v":""},{"$f":"IF('PLANILLA#1 (1-16)'!L25=\"\",\"\",'PLANILLA#1 (1-16)'!L25)","v":""},{"$f":"IF('PLANILLA#1 (1-16)'!M25=\"\",\"\",'PLANILLA#1 (1-16)'!M25)","v":""},{"$f":"IF('PLANILLA#1 (1-16)'!N25=\"\",\"\",'PLANILLA#1 (1-16)'!N25)","v":""},{"$f":"IF('PLANILLA#1 (1-16)'!O25=\"\",\"\",'PLANILLA#1 (1-16)'!O25)","v":""},{"$f":"IF('PLANILLA#1 (1-16)'!P25=\"\",\"\",'PLANILLA#1 (1-16)'!P25)","v":""},{"$f":"IF('PLANILLA#1 (1-16)'!Q25=\"\",\"\",'PLANILLA#1 (1-16)'!Q25)","v":""},{"$f":"N10","v":""},"","","",{"$f":"IF('PLANILLA#1 (1-16)'!J25=\"\",\"\",'PLANILLA#1 (1-16)'!J25)","v":""}]
[{"$f":"'PLANILLA#1 (1-16)'!B26","v":11},{"$f":"IF('PLANILLA#1 (1-16)'!C26=\"\",\"\",'PLANILLA#1 (1-16)'!AB26)","v":""},{"$f":"IF('PLANILLA#1 (1-16)'!D26=\"\",\"\",'PLANILLA#1 (1-16)'!AC26)","v":""},{"$f":"IF('PLANILLA#1 (1-16)'!Z26=\"//\",\"\",'PLANILLA#1 (1-16)'!Z26)","v":""},{"$f":"IF('PLANILLA#1 (1-16)'!H26=\"\",\"\",'PLANILLA#1 (1-16)'!H26)","v":""},{"$f":"IF('PLANILLA#1 (1-16)'!I26=\"\",\"\",'PLANILLA#1 (1-16)'!I26)","v":""},{"$f":"IF('PLANILLA#1 (1-16)'!K26=\"\",\"\",'PLANILLA#1 (1-16)'!K26)","v":""},{"$f":"IF('PLANILLA#1 (1-16)'!L26=\"\",\"\",'PLANILLA#1 (1-16)'!L26)","v":""},{"$f":"IF('PLANILLA#1 (1-16)'!M26=\"\",\"\",'PLANILLA#1 (1-16)'!M26)","v":""},{"$f":"IF('PLANILLA#1 (1-16)'!N26=\"\",\"\",'PLANILLA#1 (1-16)'!N26)","v":""},{"$f":"IF('PLANILLA#1 (1-16)'!O26=\"\",\"\",'PLANILLA#1 (1-16)'!O26)","v":""},{"$f":"IF('PLANILLA#1 (1-16)'!P26=\"\",\"\",'PLANILLA#1 (1-16)'!P26)","v":""},{"$f":"IF('PLANILLA#1 (1-16)'!Q26=\"\",\"\",'PLANILLA#1 (1-16)'!Q26)","v":""},{"$f":"N11","v":""},"","","",{"$f":"IF('PLANILLA#1 (1-16)'!J26=\"\",\"\",'PLANILLA#1 (1-16)'!J26)","v":""}]
[{"$f":"'PLANILLA#1 (1-16)'!B27","v":12},{"$f":"IF('PLANILLA#1 (1-16)'!C27=\"\",\"\",'PLANILLA#1 (1-16)'!AB27)","v":""},{"$f":"IF('PLANILLA#1 (1-16)'!D27=\"\",\"\",'PLANILLA#1 (1-16)'!AC27)","v":""},{"$f":"IF('PLANILLA#1 (1-16)'!Z27=\"//\",\"\",'PLANILLA#1 (1-16)'!Z27)","v":""},{"$f":"IF('PLANILLA#1 (1-16)'!H27=\"\",\"\",'PLANILLA#1 (1-16)'!H27)","v":""},{"$f":"IF('PLANILLA#1 (1-16)'!I27=\"\",\"\",'PLANILLA#1 (1-16)'!I27)","v":""},{"$f":"IF('PLANILLA#1 (1-16)'!K27=\"\",\"\",'PLANILLA#1 (1-16)'!K27)","v":""},{"$f":"IF('PLANILLA#1 (1-16)'!L27=\"\",\"\",'PLANILLA#1 (1-16)'!L27)","v":""},{"$f":"IF('PLANILLA#1 (1-16)'!M27=\"\",\"\",'PLANILLA#1 (1-16)'!M27)","v":""},{"$f":"IF('PLANILLA#1 (1-16)'!N27=\"\",\"\",'PLANILLA#1 (1-16)'!N27)","v":""},{"$f":"IF('PLANILLA#1 (1-16)'!O27=\"\",\"\",'PLANILLA#1 (1-16)'!O27)","v":""},{"$f":"IF('PLANILLA#1 (1-16)'!P27=\"\",\"\",'PLANILLA#1 (1-16)'!P27)","v":""},{"$f":"IF('PLANILLA#1 (1-16)'!Q27=\"\",\"\",'PLANILLA#1 (1-16)'!Q27)","v":""},{"$f":"N12","v":""},"","","",{"$f":"IF('PLANILLA#1 (1-16)'!J27=\"\",\"\",'PLANILLA#1 (1-16)'!J27)","v":""}]
[{"$f":"'PLANILLA#1 (1-16)'!B28","v":13},{"$f":"IF('PLANILLA#1 (1-16)'!C28=\"\",\"\",'PLANILLA#1 (1-16)'!AB28)","v":""},{"$f":"IF('PLANILLA#1 (1-16)'!D28=\"\",\"\",'PLANILLA#1 (1-16)'!AC28)","v":""},{"$f":"IF('PLANILLA#1 (1-16)'!Z28=\"//\",\"\",'PLANILLA#1 (1-16)'!Z28)","v":""},{"$f":"IF('PLANILLA#1 (1-16)'!H28=\"\",\"\",'PLANILLA#1 (1-16)'!H28)","v":""},{"$f":"IF('PLANILLA#1 (1-16)'!I28=\"\",\"\",'PLANILLA#1 (1-16)'!I28)","v":""},{"$f":"IF('PLANILLA#1 (1-16)'!K28=\"\",\"\",'PLANILLA#1 (1-16)'!K28)","v":""},{"$f":"IF('PLANILLA#1 (1-16)'!L28=\"\",\"\",'PLANILLA#1 (1-16)'!L28)","v":""},{"$f":"IF('PLANILLA#1 (1-16)'!M28=\"\",\"\",'PLANILLA#1 (1-16)'!M28)","v":""},{"$f":"IF('PLANILLA#1 (1-16)'!N28=\"\",\"\",'PLANILLA#1 (1-16)'!N28)","v":""},{"$f":"IF('PLANILLA#1 (1-16)'!O28=\"\",\"\",'PLANILLA#1 (1-16)'!O28)","v":""},{"$f":"IF('PLANILLA#1 (1-16)'!P28=\"\",\"\",'PLANILLA#1 (1-16)'!P28)","v":""},{"$f":"IF('PLANILLA#1 (1-16)'!Q28=\"\",\"\",'PLANILLA#1 (1-16)'!Q28)","v":""},{"$f":"N13","v":""},"","","",{"$f":"IF('PLANILLA#1 (1-16)'!J28=\"\",\"\",'PLANILLA#1 (1-16)'!J28)","v":""}]
[{"$f":"'PLANILLA#1 (1-16)'!B29","v":14},{"$f":"IF('PLANILLA#1 (1-16)'!C29=\"\",\"\",'PLANILLA#1 (1-16)'!AB29)","v":""},{"$f":"IF('PLANILLA#1 (1-16)'!D29=\"\",\"\",'PLANILLA#1 (1-16)'!AC29)","v":""},{"$f":"IF('PLANILLA#1 (1-16)'!Z29=\"//\",\"\",'PLANILLA#1 (1-16)'!Z29)","v":""},{"$f":"IF('PLANILLA#1 (1-16)'!H29=\"\",\"\",'PLANILLA#1 (1-16)'!H29)","v":""},{"$f":"IF('PLANILLA#1 (1-16)'!I29=\"\",\"\",'PLANILLA#1 (1-16)'!I29)","v":""},{"$f":"IF('PLANILLA#1 (1-16)'!K29=\"\",\"\",'PLANILLA#1 (1-16)'!K29)","v":""},{"$f":"IF('PLANILLA#1 (1-16)'!L29=\"\",\"\",'PLANILLA#1 (1-16)'!L29)","v":""},{"$f":"IF('PLANILLA#1 (1-16)'!M29=\"\",\"\",'PLANILLA#1 (1-16)'!M29)","v":""},{"$f":"IF('PLANILLA#1 (1-16)'!N29=\"\",\"\",'PLANILLA#1 (1-16)'!N29)","v":""},{"$f":"IF('PLANILLA#1 (1-16)'!O29=\"\",\"\",'PLANILLA#1 (1-16)'!O29)","v":""},{"$f":"IF('PLANILLA#1 (1-16)'!P29=\"\",\"\",'PLANILLA#1 (1-16)'!P29)","v":""},{"$f":"IF('PLANILLA#1 (1-16)'!Q29=\"\",\"\",'PLANILLA#1 (1-16)'!Q29)","v":""},{"$f":"N14","v":""},"","","",{"$f":"IF('PLANILLA#1 (1-16)'!J29=\"\",\"\",'PLANILLA#1 (1-16)'!J29)","v":""}]
[{"$f":"'PLANILLA#1 (1-16)'!B30","v":15},{"$f":"IF('PLANILLA#1 (1-16)'!C30=\"\",\"\",'PLANILLA#1 (1-16)'!AB30)","v":""},{"$f":"IF('PLANILLA#1 (1-16)'!D30=\"\",\"\",'PLANILLA#1 (1-16)'!AC30)","v":""},{"$f":"IF('PLANILLA#1 (1-16)'!Z30=\"//\",\"\",'PLANILLA#1 (1-16)'!Z30)","v":""},{"$f":"IF('PLANILLA#1 (1-16)'!H30=\"\",\"\",'PLANILLA#1 (1-16)'!H30)","v":""},{"$f":"IF('PLANILLA#1 (1-16)'!I30=\"\",\"\",'PLANILLA#1 (1-16)'!I30)","v":""},{"$f":"IF('PLANILLA#1 (1-16)'!K30=\"\",\"\",'PLANILLA#1 (1-16)'!K30)","v":""},{"$f":"IF('PLANILLA#1 (1-16)'!L30=\"\",\"\",'PLANILLA#1 (1-16)'!L30)","v":""},{"$f":"IF('PLANILLA#1 (1-16)'!M30=\"\",\"\",'PLANILLA#1 (1-16)'!M30)","v":""},{"$f":"IF('PLANILLA#1 (1-16)'!N30=\"\",\"\",'PLANILLA#1 (1-16)'!N30)","v":""},{"$f":"IF('PLANILLA#1 (1-16)'!O30=\"\",\"\",'PLANILLA#1 (1-16)'!O30)","v":""},{"$f":"IF('PLANILLA#1 (1-16)'!P30=\"\",\"\",'PLANILLA#1 (1-16)'!P30)","v":""},{"$f":"IF('PLANILLA#1 (1-16)'!Q30=\"\",\"\",'PLANILLA#1 (1-16)'!Q30)","v":""},{"$f":"N15","v":""},"","","",{"$f":"IF('PLANILLA#1 (1-16)'!J30=\"\",\"\",'PLANILLA#1 (1-16)'!J30)","v":""}]
[{"$f":"'PLANILLA#1 (1-16)'!B31","v":16},{"$f":"IF('PLANILLA#1 (1-16)'!C31=\"\",\"\",'PLANILLA#1 (1-16)'!AB31)","v":""},{"$f":"IF('PLANILLA#1 (1-16)'!D31=\"\",\"\",'PLANILLA#1 (1-16)'!AC31)","v":""},{"$f":"IF('PLANILLA#1 (1-16)'!Z31=\"//\",\"\",'PLANILLA#1 (1-16)'!Z31)","v":""},{"$f":"IF('PLANILLA#1 (1-16)'!H31=\"\",\"\",'PLANILLA#1 (1-16)'!H31)","v":""},{"$f":"IF('PLANILLA#1 (1-16)'!I31=\"\",\"\",'PLANILLA#1 (1-16)'!I31)","v":""},{"$f":"IF('PLANILLA#1 (1-16)'!K31=\"\",\"\",'PLANILLA#1 (1-16)'!K31)","v":""},{"$f":"IF('PLANILLA#1 (1-16)'!L31=\"\",\"\",'PLANILLA#1 (1-16)'!L31)","v":""},{"$f":"IF('PLANILLA#1 (1-16)'!M31=\"\",\"\",'PLANILLA#1 (1-16)'!M31)","v":""},{"$f":"IF('PLANILLA#1 (1-16)'!N31=\"\",\"\",'PLANILLA#1 (1-16)'!N31)","v":""},{"$f":"IF('PLANILLA#1 (1-16)'!O31=\"\",\"\",'PLANILLA#1 (1-16)'!O31)","v":""},{"$f":"IF('PLANILLA#1 (1-16)'!P31=\"\",\"\",'PLANILLA#1 (1-16)'!P31)","v":""},{"$f":"IF('PLANILLA#1 (1-16)'!Q31=\"\",\"\",'PLANILLA#1 (1-16)'!Q31)","v":""},{"$f":"N16","v":""},"","","",{"$f":"IF('PLANILLA#1 (1-16)'!J31=\"\",\"\",'PLANILLA#1 (1-16)'!J31)","v":""}]
[{"$f":"'PLANILLA#2 (17-32)'!B16","v":17},{"$f":"IF('PLANILLA#2 (17-32)'!C16=\"\",\"\",'PLANILLA#2 (17-32)'!AA16)","v":""},{"$f":"IF('PLANILLA#2 (17-32)'!D16=\"\",\"\",'PLANILLA#2 (17-32)'!AB16)","v":""},{"$f":"IF('PLANILLA#2 (17-32)'!Z16=\"//\",\"\",'PLANILLA#2 (17-32)'!Z16)","v":""},{"$f":"IF('PLANILLA#2 (17-32)'!H16=\"\",\"\",'PLANILLA#2 (17-32)'!H16)","v":""},{"$f":"IF('PLANILLA#2 (17-32)'!I16=\"\",\"\",'PLANILLA#2 (17-32)'!I16)","v":""},{"$f":"IF('PLANILLA#2 (17-32)'!K16=\"\",\"\",'PLANILLA#2 (17-32)'!K16)","v":""},{"$f":"IF('PLANILLA#2 (17-32)'!L16=\"\",\"\",'PLANILLA#2 (17-32)'!L16)","v":""},{"$f":"IF('PLANILLA#2 (17-32)'!M16=\"\",\"\",'PLANILLA#2 (17-32)'!M16)","v":""},{"$f":"IF('PLANILLA#2 (17-32)'!N16=\"\",\"\",'PLANILLA#2 (17-32)'!N16)","v":""},{"$f":"IF('PLANILLA#2 (17-32)'!O16=\"\",\"\",'PLANILLA#2 (17-32)'!O16)","v":""},{"$f":"IF('PLANILLA#2 (17-32)'!P16=\"\",\"\",'PLANILLA#2 (17-32)'!P16)","v":""},{"$f":"IF('PLANILLA#2 (17-32)'!Q16=\"\",\"\",'PLANILLA#2 (17-32)'!Q16)","v":""},{"$f":"N17","v":""},"","","",{"$f":"IF('PLANILLA#2 (17-32)'!J16=\"\",\"\",'PLANILLA#2 (17-32)'!J16)","v":""}]
[{"$f":"'PLANILLA#2 (17-32)'!B17","v":18},{"$f":"IF('PLANILLA#2 (17-32)'!C17=\"\",\"\",'PLANILLA#2 (17-32)'!AA17)","v":""},{"$f":"IF('PLANILLA#2 (17-32)'!D17=\"\",\"\",'PLANILLA#2 (17-32)'!AB17)","v":""},{"$f":"IF('PLANILLA#2 (17-32)'!Z17=\"//\",\"\",'PLANILLA#2 (17-32)'!Z17)","v":""},{"$f":"IF('PLANILLA#2 (17-32)'!H17=\"\",\"\",'PLANILLA#2 (17-32)'!H17)","v":""},{"$f":"IF('PLANILLA#2 (17-32)'!I17=\"\",\"\",'PLANILLA#2 (17-32)'!I17)","v":""},{"$f":"IF('PLANILLA#2 (17-32)'!K17=\"\",\"\",'PLANILLA#2 (17-32)'!K17)","v":""},{"$f":"IF('PLANILLA#2 (17-32)'!L17=\"\",\"\",'PLANILLA#2 (17-32)'!L17)","v":""},{"$f":"IF('PLANILLA#2 (17-32)'!M17=\"\",\"\",'PLANILLA#2 (17-32)'!M17)","v":""},{"$f":"IF('PLANILLA#2 (17-32)'!N17=\"\",\"\",'PLANILLA#2 (17-32)'!N17)","v":""},{"$f":"IF('PLANILLA#2 (17-32)'!O17=\"\",\"\",'PLANILLA#2 (17-32)'!O17)","v":""},{"$f":"IF('PLANILLA#2 (17-32)'!P17=\"\",\"\",'PLANILLA#2 (17-32)'!P17)","v":""},{"$f":"IF('PLANILLA#2 (17-32)'!Q17=\"\",\"\",'PLANILLA#2 (17-32)'!Q17)","v":""},{"$f":"N18","v":""},"","","",{"$f":"IF('PLANILLA#2 (17-32)'!J17=\"\",\"\",'PLANILLA#2 (17-32)'!J17)","v":""}]
[{"$f":"'PLANILLA#2 (17-32)'!B18","v":19},{"$f":"IF('PLANILLA#2 (17-32)'!C18=\"\",\"\",'PLANILLA#2 (17-32)'!AA18)","v":""},{"$f":"IF('PLANILLA#2 (17-32)'!D18=\"\",\"\",'PLANILLA#2 (17-32)'!AB18)","v":""},{"$f":"IF('PLANILLA#2 (17-32)'!Z18=\"//\",\"\",'PLANILLA#2 (17-32)'!Z18)","v":""},{"$f":"IF('PLANILLA#2 (17-32)'!H18=\"\",\"\",'PLANILLA#2 (17-32)'!H18)","v":""},{"$f":"IF('PLANILLA#2 (17-32)'!I18=\"\",\"\",'PLANILLA#2 (17-32)'!I18)","v":""},{"$f":"IF('PLANILLA#2 (17-32)'!K18=\"\",\"\",'PLANILLA#2 (17-32)'!K18)","v":""},{"$f":"IF('PLANILLA#2 (17-32)'!L18=\"\",\"\",'PLANILLA#2 (17-32)'!L18)","v":""},{"$f":"IF('PLANILLA#2 (17-32)'!M18=\"\",\"\",'PLANILLA#2 (17-32)'!M18)","v":""},{"$f":"IF('PLANILLA#2 (17-32)'!N18=\"\",\"\",'PLANILLA#2 (17-32)'!N18)","v":""},{"$f":"IF('PLANILLA#2 (17-32)'!O18=\"\",\"\",'PLANILLA#2 (17-32)'!O18)","v":""},{"$f":"IF('PLANILLA#2 (17-32)'!P18=\"\",\"\",'PLANILLA#2 (17-32)'!P18)","v":""},{"$f":"IF('PLANILLA#2 (17-32)'!Q18=\"\",\"\",'PLANILLA#2 (17-32)'!Q18)","v":""},{"$f":"N19","v":""},"","","",{"$f":"IF('PLANILLA#2 (17-32)'!J18=\"\",\"\",'PLANILLA#2 (17-32)'!J18)","v":""}]
[{"$f":"'PLANILLA#2 (17-32)'!B19","v":20},{"$f":"IF('PLANILLA#2 (17-32)'!C19=\"\",\"\",'PLANILLA#2 (17-32)'!AA19)","v":""},{"$f":"IF('PLANILLA#2 (17-32)'!D19=\"\",\"\",'PLANILLA#2 (17-32)'!AB19)","v":""},{"$f":"IF('PLANILLA#2 (17-32)'!Z19=\"//\",\"\",'PLANILLA#2 (17-32)'!Z19)","v":""},{"$f":"IF('PLANILLA#2 (17-32)'!H19=\"\",\"\",'PLANILLA#2 (17-32)'!H19)","v":""},{"$f":"IF('PLANILLA#2 (17-32)'!I19=\"\",\"\",'PLANILLA#2 (17-32)'!I19)","v":""},{"$f":"IF('PLANILLA#2 (17-32)'!K19=\"\",\"\",'PLANILLA#2 (17-32)'!K19)","v":""},{"$f":"IF('PLANILLA#2 (17-32)'!L19=\"\",\"\",'PLANILLA#2 (17-32)'!L19)","v":""},{"$f":"IF('PLANILLA#2 (17-32)'!M19=\"\",\"\",'PLANILLA#2 (17-32)'!M19)","v":""},{"$f":"IF('PLANILLA#2 (17-32)'!N19=\"\",\"\",'PLANILLA#2 (17-32)'!N19)","v":""},{"$f":"IF('PLANILLA#2 (17-32)'!O19=\"\",\"\",'PLANILLA#2 (17-32)'!O19)","v":""},{"$f":"IF('PLANILLA#2 (17-32)'!P19=\"\",\"\",'PLANILLA#2 (17-32)'!P19)","v":""},{"$f":"IF('PLANILLA#2 (17-32)'!Q19=\"\",\"\",'PLANILLA#2 (17-32)'!Q19)","v":""},{"$f":"N20","v":""},"","","",{"$f":"IF('PLANILLA#2 (17-32)'!J19=\"\",\"\",'PLANILLA#2 (17-32)'!J19)","v":""}]
[{"$f":"'PLANILLA#2 (17-32)'!B20","v":21},{"$f":"IF('PLANILLA#2 (17-32)'!C20=\"\",\"\",'PLANILLA#2 (17-32)'!AA20)","v":""},{"$f":"IF('PLANILLA#2 (17-32)'!D20=\"\",\"\",'PLANILLA#2 (17-32)'!AB20)","v":""},{"$f":"IF('PLANILLA#2 (17-32)'!Z20=\"//\",\"\",'PLANILLA#2 (17-32)'!Z20)","v":""},{"$f":"IF('PLANILLA#2 (17-32)'!H20=\"\",\"\",'PLANILLA#2 (17-32)'!H20)","v":""},{"$f":"IF('PLANILLA#2 (17-32)'!I20=\"\",\"\",'PLANILLA#2 (17-32)'!I20)","v":""},{"$f":"IF('PLANILLA#2 (17-32)'!K20=\"\",\"\",'PLANILLA#2 (17-32)'!K20)","v":""},{"$f":"IF('PLANILLA#2 (17-32)'!L20=\"\",\"\",'PLANILLA#2 (17-32)'!L20)","v":""},{"$f":"IF('PLANILLA#2 (17-32)'!M20=\"\",\"\",'PLANILLA#2 (17-32)'!M20)","v":""},{"$f":"IF('PLANILLA#2 (17-32)'!N20=\"\",\"\",'PLANILLA#2 (17-32)'!N20)","v":""},{"$f":"IF('PLANILLA#2 (17-32)'!O20=\"\",\"\",'PLANILLA#2 (17-32)'!O20)","v":""},{"$f":"IF('PLANILLA#2 (17-32)'!P20=\"\",\"\",'PLANILLA#2 (17-32)'!P20)","v":""},{"$f":"IF('PLANILLA#2 (17-32)'!Q20=\"\",\"\",'PLANILLA#2 (17-32)'!Q20)","v":""},{"$f":"N21","v":""},"","","",{"$f":"IF('PLANILLA#2 (17-32)'!J20=\"\",\"\",'PLANILLA#2 (17-32)'!J20)","v":""}]
[{"$f":"'PLANILLA#2 (17-32)'!B21","v":22},{"$f":"IF('PLANILLA#2 (17-32)'!C21=\"\",\"\",'PLANILLA#2 (17-32)'!AA21)","v":""},{"$f":"IF('PLANILLA#2 (17-32)'!D21=\"\",\"\",'PLANILLA#2 (17-32)'!AB21)","v":""},{"$f":"IF('PLANILLA#2 (17-32)'!Z21=\"//\",\"\",'PLANILLA#2 (17-32)'!Z21)","v":""},{"$f":"IF('PLANILLA#2 (17-32)'!H21=\"\",\"\",'PLANILLA#2 (17-32)'!H21)","v":""},{"$f":"IF('PLANILLA#2 (17-32)'!I21=\"\",\"\",'PLANILLA#2 (17-32)'!I21)","v":""},{"$f":"IF('PLANILLA#2 (17-32)'!K21=\"\",\"\",'PLANILLA#2 (17-32)'!K21)","v":""},{"$f":"IF('PLANILLA#2 (17-32)'!L21=\"\",\"\",'PLANILLA#2 (17-32)'!L21)","v":""},{"$f":"IF('PLANILLA#2 (17-32)'!M21=\"\",\"\",'PLANILLA#2 (17-32)'!M21)","v":""},{"$f":"IF('PLANILLA#2 (17-32)'!N21=\"\",\"\",'PLANILLA#2 (17-32)'!N21)","v":""},{"$f":"IF('PLANILLA#2 (17-32)'!O21=\"\",\"\",'PLANILLA#2 (17-32)'!O21)","v":""},{"$f":"IF('PLANILLA#2 (17-32)'!P21=\"\",\"\",'PLANILLA#2 (17-32)'!P21)","v":""},{"$f":"IF('PLANILLA#2 (17-32)'!Q21=\"\",\"\",'PLANILLA#2 (17-32)'!Q21)","v":""},{"$f":"N22","v":""},"","","",{"$f":"IF('PLANILLA#2 (17-32)'!J21=\"\",\"\",'PLANILLA#2 (17-32)'!J21)","v":""}]
[{"$f":"'PLANILLA#2 (17-32)'!B22","v":23},{"$f":"IF('PLANILLA#2 (17-32)'!C22=\"\",\"\",'PLANILLA#2 (17-32)'!AA22)","v":""},{"$f":"IF('PLANILLA#2 (17-32)'!D22=\"\",\"\",'PLANILLA#2 (17-32)'!AB22)","v":""},{"$f":"IF('PLANILLA#2 (17-32)'!Z22=\"//\",\"\",'PLANILLA#2 (17-32)'!Z22)","v":""},{"$f":"IF('PLANILLA#2 (17-32)'!H22=\"\",\"\",'PLANILLA#2 (17-32)'!H22)","v":""},{"$f":"IF('PLANILLA#2 (17-32)'!I22=\"\",\"\",'PLANILLA#2 (17-32)'!I22)","v":""},{"$f":"IF('PLANILLA#2 (17-32)'!K22=\"\",\"\",'PLANILLA#2 (17-32)'!K22)","v":""},{"$f":"IF('PLANILLA#2 (17-32)'!L22=\"\",\"\",'PLANILLA#2 (17-32)'!L22)","v":""},{"$f":"IF('PLANILLA#2 (17-32)'!M22=\"\",\"\",'PLANILLA#2 (17-32)'!M22)","v":""},{"$f":"IF('PLANILLA#2 (17-32)'!N22=\"\",\"\",'PLANILLA#2 (17-32)'!N22)","v":""},{"$f":"IF('PLANILLA#2 (17-32)'!O22=\"\",\"\",'PLANILLA#2 (17-32)'!O22)","v":""},{"$f":"IF('PLANILLA#2 (17-32)'!P22=\"\",\"\",'PLANILLA#2 (17-32)'!P22)","v":""},{"$f":"IF('PLANILLA#2 (17-32)'!Q22=\"\",\"\",'PLANILLA#2 (17-32)'!Q22)","v":""},{"$f":"N23","v":""},"","","",{"$f":"IF('PLANILLA#2 (17-32)'!J22=\"\",\"\",'PLANILLA#2 (17-32)'!J22)","v":""}]
[{"$f":"'PLANILLA#2 (17-32)'!B23","v":24},{"$f":"IF('PLANILLA#2 (17-32)'!C23=\"\",\"\",'PLANILLA#2 (17-32)'!AA23)","v":""},{"$f":"IF('PLANILLA#2 (17-32)'!D23=\"\",\"\",'PLANILLA#2 (17-32)'!AB23)","v":""},{"$f":"IF('PLANILLA#2 (17-32)'!Z23=\"//\",\"\",'PLANILLA#2 (17-32)'!Z23)","v":""},{"$f":"IF('PLANILLA#2 (17-32)'!H23=\"\",\"\",'PLANILLA#2 (17-32)'!H23)","v":""},{"$f":"IF('PLANILLA#2 (17-32)'!I23=\"\",\"\",'PLANILLA#2 (17-32)'!I23)","v":""},{"$f":"IF('PLANILLA#2 (17-32)'!K23=\"\",\"\",'PLANILLA#2 (17-32)'!K23)","v":""},{"$f":"IF('PLANILLA#2 (17-32)'!L23=\"\",\"\",'PLANILLA#2 (17-32)'!L23)","v":""},{"$f":"IF('PLANILLA#2 (17-32)'!M23=\"\",\"\",'PLANILLA#2 (17-32)'!M23)","v":""},{"$f":"IF('PLANILLA#2 (17-32)'!N23=\"\",\"\",'PLANILLA#2 (17-32)'!N23)","v":""},{"$f":"IF('PLANILLA#2 (17-32)'!O23=\"\",\"\",'PLANILLA#2 (17-32)'!O23)","v":""},{"$f":"IF('PLANILLA#2 (17-32)'!P23=\"\",\"\",'PLANILLA#2 (17-32)'!P23)","v":""},{"$f":"IF('PLANILLA#2 (17-32)'!Q23=\"\",\"\",'PLANILLA#2 (17-32)'!Q23)","v":""},{"$f":"N24","v":""},"","","",{"$f":"IF('PLANILLA#2 (17-32)'!J23=\"\",\"\",'PLANILLA#2 (17-32)'!J23)","v":""}]
[{"$f":"'PLANILLA#2 (17-32)'!B24","v":25},{"$f":"IF('PLANILLA#2 (17-32)'!C24=\"\",\"\",'PLANILLA#2 (17-32)'!AA24)","v":""},{"$f":"IF('PLANILLA#2 (17-32)'!D24=\"\",\"\",'PLANILLA#2 (17-32)'!AB24)","v":""},{"$f":"IF('PLANILLA#2 (17-32)'!Z24=\"//\",\"\",'PLANILLA#2 (17-32)'!Z24)","v":""},{"$f":"IF('PLANILLA#2 (17-32)'!H24=\"\",\"\",'PLANILLA#2 (17-32)'!H24)","v":""},{"$f":"IF('PLANILLA#2 (17-32)'!I24=\"\",\"\",'PLANILLA#2 (17-32)'!I24)","v":""},{"$f":"IF('PLANILLA#2 (17-32)'!K24=\"\",\"\",'PLANILLA#2 (17-32)'!K24)","v":""},{"$f":"IF('PLANILLA#2 (17-32)'!L24=\"\",\"\",'PLANILLA#2 (17-32)'!L24)","v":""},{"$f":"IF('PLANILLA#2 (17-32)'!M24=\"\",\"\",'PLANILLA#2 (17-32)'!M24)","v":""},{"$f":"IF('PLANILLA#2 (17-32)'!N24=\"\",\"\",'PLANILLA#2 (17-32)'!N24)","v":""},{"$f":"IF('PLANILLA#2 (17-32)'!O24=\"\",\"\",'PLANILLA#2 (17-32)'!O24)","v":""},{"$f":"IF('PLANILLA#2 (17-32)'!P24=\"\",\"\",'PLANILLA#2 (17-32)'!P24)","v":""},{"$f":"IF('PLANILLA#2 (17-32)'!Q24=\"\",\"\",'PLANILLA#2 (17-32)'!Q24)","v":""},{"$f":"N25","v":""},"","","",{"$f":"IF('PLANILLA#2 (17-32)'!J24=\"\",\"\",'PLANILLA#2 (17-32)'!J24)","v":""}]
[{"$f":"'PLANILLA#2 (17-32)'!B25","v":26},{"$f":"IF('PLANILLA#2 (17-32)'!C25=\"\",\"\",'PLANILLA#2 (17-32)'!AA25)","v":""},{"$f":"IF('PLANILLA#2 (17-32)'!D25=\"\",\"\",'PLANILLA#2 (17-32)'!AB25)","v":""},{"$f":"IF('PLANILLA#2 (17-32)'!Z25=\"//\",\"\",'PLANILLA#2 (17-32)'!Z25)","v":""},{"$f":"IF('PLANILLA#2 (17-32)'!H25=\"\",\"\",'PLANILLA#2 (17-32)'!H25)","v":""},{"$f":"IF('PLANILLA#2 (17-32)'!I25=\"\",\"\",'PLANILLA#2 (17-32)'!I25)","v":""},{"$f":"IF('PLANILLA#2 (17-32)'!K25=\"\",\"\",'PLANILLA#2 (17-32)'!K25)","v":""},{"$f":"IF('PLANILLA#2 (17-32)'!L25=\"\",\"\",'PLANILLA#2 (17-32)'!L25)","v":""},{"$f":"IF('PLANILLA#2 (17-32)'!M25=\"\",\"\",'PLANILLA#2 (17-32)'!M25)","v":""},{"$f":"IF('PLANILLA#2 (17-32)'!N25=\"\",\"\",'PLANILLA#2 (17-32)'!N25)","v":""},{"$f":"IF('PLANILLA#2 (17-32)'!O25=\"\",\"\",'PLANILLA#2 (17-32)'!O25)","v":""},{"$f":"IF('PLANILLA#2 (17-32)'!P25=\"\",\"\",'PLANILLA#2 (17-32)'!P25)","v":""},{"$f":"IF('PLANILLA#2 (17-32)'!Q25=\"\",\"\",'PLANILLA#2 (17-32)'!Q25)","v":""},{"$f":"N26","v":""},"","","",{"$f":"IF('PLANILLA#2 (17-32)'!J25=\"\",\"\",'PLANILLA#2 (17-32)'!J25)","v":""}]
[{"$f":"'PLANILLA#2 (17-32)'!B26","v":27},{"$f":"IF('PLANILLA#2 (17-32)'!C26=\"\",\"\",'PLANILLA#2 (17-32)'!AA26)","v":""},{"$f":"IF('PLANILLA#2 (17-32)'!D26=\"\",\"\",'PLANILLA#2 (17-32)'!AB26)","v":""},{"$f":"IF('PLANILLA#2 (17-32)'!Z26=\"//\",\"\",'PLANILLA#2 (17-32)'!Z26)","v":""},{"$f":"IF('PLANILLA#2 (17-32)'!H26=\"\",\"\",'PLANILLA#2 (17-32)'!H26)","v":""},{"$f":"IF('PLANILLA#2 (17-32)'!I26=\"\",\"\",'PLANILLA#2 (17-32)'!I26)","v":""},{"$f":"IF('PLANILLA#2 (17-32)'!K26=\"\",\"\",'PLANILLA#2 (17-32)'!K26)","v":""},{"$f":"IF('PLANILLA#2 (17-32)'!L26=\"\",\"\",'PLANILLA#2 (17-32)'!L26)","v":""},{"$f":"IF('PLANILLA#2 (17-32)'!M26=\"\",\"\",'PLANILLA#2 (17-32)'!M26)","v":""},{"$f":"IF('PLANILLA#2 (17-32)'!N26=\"\",\"\",'PLANILLA#2 (17-32)'!N26)","v":""},{"$f":"IF('PLANILLA#2 (17-32)'!O26=\"\",\"\",'PLANILLA#2 (17-32)'!O26)","v":""},{"$f":"IF('PLANILLA#2 (17-32)'!P26=\"\",\"\",'PLANILLA#2 (17-32)'!P26)","v":""},{"$f":"IF('PLANILLA#2 (17-32)'!Q26=\"\",\"\",'PLANILLA#2 (17-32)'!Q26)","v":""},{"$f":"N27","v":""},"","","",{"$f":"IF('PLANILLA#2 (17-32)'!J26=\"\",\"\",'PLANILLA#2 (17-32)'!J26)","v":""}]
[{"$f":"'PLANILLA#2 (17-32)'!B27","v":28},{"$f":"IF('PLANILLA#2 (17-32)'!C27=\"\",\"\",'PLANILLA#2 (17-32)'!AA27)","v":""},{"$f":"IF('PLANILLA#2 (17-32)'!D27=\"\",\"\",'PLANILLA#2 (17-32)'!AB27)","v":""},{"$f":"IF('PLANILLA#2 (17-32)'!Z27=\"//\",\"\",'PLANILLA#2 (17-32)'!Z27)","v":""},{"$f":"IF('PLANILLA#2 (17-32)'!H27=\"\",\"\",'PLANILLA#2 (17-32)'!H27)","v":""},{"$f":"IF('PLANILLA#2 (17-32)'!I27=\"\",\"\",'PLANILLA#2 (17-32)'!I27)","v":""},{"$f":"IF('PLANILLA#2 (17-32)'!K27=\"\",\"\",'PLANILLA#2 (17-32)'!K27)","v":""},{"$f":"IF('PLANILLA#2 (17-32)'!L27=\"\",\"\",'PLANILLA#2 (17-32)'!L27)","v":""},{"$f":"IF('PLANILLA#2 (17-32)'!M27=\"\",\"\",'PLANILLA#2 (17-32)'!M27)","v":""},{"$f":"IF('PLANILLA#2 (17-32)'!N27=\"\",\"\",'PLANILLA#2 (17-32)'!N27)","v":""},{"$f":"IF('PLANILLA#2 (17-32)'!O27=\"\",\"\",'PLANILLA#2 (17-32)'!O27)","v":""},{"$f":"IF('PLANILLA#2 (17-32)'!P27=\"\",\"\",'PLANILLA#2 (17-32)'!P27)","v":""},{"$f":"IF('PLANILLA#2 (17-32)'!Q27=\"\",\"\",'PLANILLA#2 (17-32)'!Q27)","v":""},{"$f":"N28","v":""},"","","",{"$f":"IF('PLANILLA#2 (17-32)'!J27=\"\",\"\",'PLANILLA#2 (17-32)'!J27)","v":""}]
[{"$f":"'PLANILLA#2 (17-32)'!B28","v":29},{"$f":"IF('PLANILLA#2 (17-32)'!C28=\"\",\"\",'PLANILLA#2 (17-32)'!AA28)","v":""},{"$f":"IF('PLANILLA#2 (17-32)'!D28=\"\",\"\",'PLANILLA#2 (17-32)'!AB28)","v":""},{"$f":"IF('PLANILLA#2 (17-32)'!Z28=\"//\",\"\",'PLANILLA#2 (17-32)'!Z28)","v":""},{"$f":"IF('PLANILLA#2 (17-32)'!H28=\"\",\"\",'PLANILLA#2 (17-32)'!H28)","v":""},{"$f":"IF('PLANILLA#2 (17-32)'!I28=\"\",\"\",'PLANILLA#2 (17-32)'!I28)","v":""},{"$f":"IF('PLANILLA#2 (17-32)'!K28=\"\",\"\",'PLANILLA#2 (17-32)'!K28)","v":""},{"$f":"IF('PLANILLA#2 (17-32)'!L28=\"\",\"\",'PLANILLA#2 (17-32)'!L28)","v":""},{"$f":"IF('PLANILLA#2 (17-32)'!M28=\"\",\"\",'PLANILLA#2 (17-32)'!M28)","v":""},{"$f":"IF('PLANILLA#2 (17-32)'!N28=\"\",\"\",'PLANILLA#2 (17-32)'!N28)","v":""},{"$f":"IF('PLANILLA#2 (17-32)'!O28=\"\",\"\",'PLANILLA#2 (17-32)'!O28)","v":""},{"$f":"IF('PLANILLA#2 (17-32)'!P28=\"\",\"\",'PLANILLA#2 (17-32)'!P28)","v":""},{"$f":"IF('PLANILLA#2 (17-32)'!Q28=\"\",\"\",'PLANILLA#2 (17-32)'!Q28)","v":""},{"$f":"N29","v":""},"","","",{"$f":"IF('PLANILLA#2 (17-32)'!J28=\"\",\"\",'PLANILLA#2 (17-32)'!J28)","v":""}]
[{"$f":"'PLANILLA#2 (17-32)'!B29","v":30},{"$f":"IF('PLANILLA#2 (17-32)'!C29=\"\",\"\",'PLANILLA#2 (17-32)'!AA29)","v":""},{"$f":"IF('PLANILLA#2 (17-32)'!D29=\"\",\"\",'PLANILLA#2 (17-32)'!AB29)","v":""},{"$f":"IF('PLANILLA#2 (17-32)'!Z29=\"//\",\"\",'PLANILLA#2 (17-32)'!Z29)","v":""},{"$f":"IF('PLANILLA#2 (17-32)'!H29=\"\",\"\",'PLANILLA#2 (17-32)'!H29)","v":""},{"$f":"IF('PLANILLA#2 (17-32)'!I29=\"\",\"\",'PLANILLA#2 (17-32)'!I29)","v":""},{"$f":"IF('PLANILLA#2 (17-32)'!K29=\"\",\"\",'PLANILLA#2 (17-32)'!K29)","v":""},{"$f":"IF('PLANILLA#2 (17-32)'!L29=\"\",\"\",'PLANILLA#2 (17-32)'!L29)","v":""},{"$f":"IF('PLANILLA#2 (17-32)'!M29=\"\",\"\",'PLANILLA#2 (17-32)'!M29)","v":""},{"$f":"IF('PLANILLA#2 (17-32)'!N29=\"\",\"\",'PLANILLA#2 (17-32)'!N29)","v":""},{"$f":"IF('PLANILLA#2 (17-32)'!O29=\"\",\"\",'PLANILLA#2 (17-32)'!O29)","v":""},{"$f":"IF('PLANILLA#2 (17-32)'!P29=\"\",\"\",'PLANILLA#2 (17-32)'!P29)","v":""},{"$f":"IF('PLANILLA#2 (17-32)'!Q29=\"\",\"\",'PLANILLA#2 (17-32)'!Q29)","v":""},{"$f":"N30","v":""},"","","",{"$f":"IF('PLANILLA#2 (17-32)'!J29=\"\",\"\",'PLANILLA#2 (17-32)'!J29)","v":""}]
[{"$f":"'PLANILLA#2 (17-32)'!B30","v":31},{"$f":"IF('PLANILLA#2 (17-32)'!C30=\"\",\"\",'PLANILLA#2 (17-32)'!AA30)","v":""},{"$f":"IF('PLANILLA#2 (17-32)'!D30=\"\",\"\",'PLANILLA#2 (17-32)'!AB30)","v":""},{"$f":"IF('PLANILLA#2 (17-32)'!Z30=\"//\",\"\",'PLANILLA#2 (17-32)'!Z30)","v":""},{"$f":"IF('PLANILLA#2 (17-32)'!H30=\"\",\"\",'PLANILLA#2 (17-32)'!H30)","v":""},{"$f":"IF('PLANILLA#2 (17-32)'!I30=\"\",\"\",'PLANILLA#2 (17-32)'!I30)","v":""},{"$f":"IF('PLANILLA#2 (17-32)'!K30=\"\",\"\",'PLANILLA#2 (17-32)'!K30)","v":""},{"$f":"IF('PLANILLA#2 (17-32)'!L30=\"\",\"\",'PLANILLA#2 (17-32)'!L30)","v":""},{"$f":"IF('PLANILLA#2 (17-32)'!M30=\"\",\"\",'PLANILLA#2 (17-32)'!M30)","v":""},{"$f":"IF('PLANILLA#2 (17-32)'!N30=\"\",\"\",'PLANILLA#2 (17-32)'!N30)","v":""},{"$f":"IF('PLANILLA#2 (17-32)'!O30=\"\",\"\",'PLANILLA#2 (17-32)'!O30)","v":""},{"$f":"IF('PLANILLA#2 (17-32)'!P30=\"\",\"\",'PLANILLA#2 (17-32)'!P30)","v":""},{"$f":"IF('PLANILLA#2 (17-32)'!Q30=\"\",\"\",'PLANILLA#2 (17-32)'!Q30)","v":""},{"$f":"N31","v":""},"","","",{"$f":"IF('PLANILLA#2 (17-32)'!J30=\"\",\"\",'PLANILLA#2 (17-32)'!J30)","v":""}]
[{"$f":"'PLANILLA#2 (17-32)'!B31","v":32},{"$f":"IF('PLANILLA#2 (17-32)'!C31=\"\",\"\",'PLANILLA#2 (17-32)'!AA31)","v":""},{"$f":"IF('PLANILLA#2 (17-32)'!D31=\"\",\"\",'PLANILLA#2 (17-32)'!AB31)","v":""},{"$f":"IF('PLANILLA#2 (17-32)'!Z31=\"//\",\"\",'PLANILLA#2 (17-32)'!Z31)","v":""},{"$f":"IF('PLANILLA#2 (17-32)'!H31=\"\",\"\",'PLANILLA#2 (17-32)'!H31)","v":""},{"$f":"IF('PLANILLA#2 (17-32)'!I31=\"\",\"\",'PLANILLA#2 (17-32)'!I31)","v":""},{"$f":"IF('PLANILLA#2 (17-32)'!K31=\"\",\"\",'PLANILLA#2 (17-32)'!K31)","v":""},{"$f":"IF('PLANILLA#2 (17-32)'!L31=\"\",\"\",'PLANILLA#2 (17-32)'!L31)","v":""},{"$f":"IF('PLANILLA#2 (17-32)'!M31=\"\",\"\",'PLANILLA#2 (17-32)'!M31)","v":""},{"$f":"IF('PLANILLA#2 (17-32)'!N31=\"\",\"\",'PLANILLA#2 (17-32)'!N31)","v":""},{"$f":"IF('PLANILLA#2 (17-32)'!O31=\"\",\"\",'PLANILLA#2 (17-32)'!O31)","v":""},{"$f":"IF('PLANILLA#2 (17-32)'!P31=\"\",\"\",'PLANILLA#2 (17-32)'!P31)","v":""},{"$f":"IF('PLANILLA#2 (17-32)'!Q31=\"\",\"\",'PLANILLA#2 (17-32)'!Q31)","v":""},{"$f":"N32","v":""},"","","",{"$f":"IF('PLANILLA#2 (17-32)'!J31=\"\",\"\",'PLANILLA#2 (17-32)'!J31)","v":""}]